Workbook

Sheet Отчет
A1: Кумулятивный рейтинг студентов
A2: Дата выгрузки: 26.10.2015
A3: Период: с начала обучения по 2014/2015 учебный год II семестр
A4: Факультет/отделение: Факультет коммуникаций, медиа и дизайна
A5: Направление подготовки: Направление "Журналистика"
A6: Уровень образования, номер курса: Бакалавриат 1 курс
A8: Место | B8: Студент | C8: ID | D8: Группа | E8: Образовательная программа студента | F8: 2014/2015 учебный год 1 модуль | N8: 2014/2015 учебный год 2 модуль | AO8: 2014/2015 учебный год 3 модуль | AU8: 2014/2015 учебный год 4 модуль | BO8: Кумулятивный рейтинг | BP8: Сумма оценок | BQ8: Количество оценок | BR8: Средняя оценка | BS8: Минимальный балл | BT8: Номер места
F9: Экзамен | I9: Зачет | N9: Экзамен | AD9: Зачет | AO9: Экзамен | AS9: Зачет | AU9: Экзамен | BJ9: Зачет
F10: Безопасность жизнедеятельности | G10: Информационные технологии подготовки печатных и электронных СМИ | H10: Проектный семинар | I10: Безопасность жизнедеятельности | J10: Безопасность жизнедеятельности | K10: Безопасность жизнедеятельности | L10: Проектный семинар | M10: Проектный семинар | N10: Английский язык | O10: Английский язык | P10: Английский язык | Q10: Иностранный язык (интенсивный курс английского языка для начинающих) (1 курс) | R10: История и теория литературы | S10: История и теория литературы | T10: Основы работы с Adobe Photoshop и GIMP | U10: Проектный семинар | V10: Создание Интернет-проектов. Уровень 1. Язык HTML | W10: Социология | X10: Теория и практика русского литературного языка | Y10: Теория и практика русского литературного языка | Z10: Философия | AA10: Философия | AB10: Философия | AC10: Философия | AD10: Английский язык | AE10: Английский язык | AF10: Английский язык | AG10: Проектный семинар | AH10: Социология | AI10: Теория и практика русского литературного языка | AJ10: Теория и практика русского литературного языка | AK10: Физическая культура | AL10: Физическая культура | AM10: Физическая культура | AN10: Физическая культура | AO10: История медиакоммуникаций | AP10: Проектный семинар | AQ10: Расширенные возможности Adobe Photoshop и GIMP | AR10: Советская массовая культура: жанровое кино | AS10: История медиакоммуникаций | AT10: Креативное письмо | AU10: Английский язык | AV10: Английский язык | AW10: Английский язык | AX10: Иностранный язык (интенсивный курс английского языка для начинающих) (1 курс) | AY10: История | AZ10: История | BA10: Право | BB10: Проектный семинар | BC10: Психология | BD10: Психология | BE10: Рассказывание историй в журналистике | BF10: Теория медиакоммуникаций | BG10: Техника речи | BH10: Экономика | BI10: Экономика | BJ10: Рассказывание историй в журналистике | BK10: Теория медиакоммуникаций | BL10: Физическая культура | BM10: Физическая культура | BN10: Физическая культура
A11: Число кумулятивных кредитов: | F11: 1 | G11: 3 | H11: 2 | I11: 0.5 | J11: 1 | K11: 3 | L11: 2 | M11: 3 | N11: 3.56 | O11: 2 | P11: 3.56 | Q11: 7.11 | R11: 5 | S11: 7 | T11: 2 | U11: 2 | V11: 2 | W11: 4 | X11: 4 | Y11: 5 | Z11: 3 | AA11: 4 | AB11: 5 | AC11: 6 | AD11: 3.56 | AE11: 2.22 | AF11: 2.67 | AG11: 2 | AH11: 3 | AI11: 3 | AJ11: 5 | AK11: 0 | AL11: 0.22 | AM11: 0.25 | AN11: 1 | AO11: 5 | AP11: 2 | AQ11: 2 | AR11: 2 | AS11: 8.66 | AT11: 0 | AU11: 4.44 | AV11: 2.78 | AW11: 4.44 | AX11: 8.89 | AY11: 6 | AZ11: 7 | BA11: 4 | BB11: 2 | BC11: 3 | BD11: 4 | BE11: 0 | BF11: 4 | BG11: 5 | BH11: 3.74 | BI11: 6 | BJ11: 0 | BK11: 2.34 | BL11: 0 | BM11: 0.22 | BN11: 0.25
A12: 1 | B12: Мащенко Владислава Владимировна | C12: 515640266 | D12: БЖУР143 | E12: Журналистика | F12: 9 | G12: 10 | H12: 9 | Q12: 8 | R12: 10 | U12: 9 | W12: 8 | Y12: 9 | AA12: 10 | AK12: 10 | AO12: 10 | AP12: 8 | AX12: 9 | AZ12: 9 | BA12: 8 | BB12: 9 | BD12: 10 | BF12: 10 | BI12: 10 | BL12: 10 | BO12: 697.89 | BP12: 185 | BQ12: 20 | BR12: =IF(BQ12 > 0,BP12/BQ12,0) -> 9.25 | BS12: =MIN($F12:BN12) -> 8 | BT12: 1
A13: 2 | B13: Касьяненко Дарья Алексеевна | C13: 498435661 | D13: БЖУР141 | E13: Журналистика | F13: 9 | G13: 10 | H13: 10 | N13: 9 | R13: 10 | U13: 10 | V13: 9 | W13: 8 | Y13: 9 | AA13: 8 | AK13: 10 | AO13: 10 | AP13: 8 | AU13: 9 | AZ13: 9 | BA13: 7 | BB13: 9 | BD13: 9 | BE13: 10 | BF13: 10 | BG13: 9 | BI13: 10 | BL13: 10 | BO13: 684 | BP13: 212 | BQ13: 23 | BR13: =IF(BQ13 > 0,BP13/BQ13,0) -> 9.217391304 | BS13: =MIN($F13:BN13) -> 7 | BT13: 2
A14: 3 | B14: Древова Юлия Николаевна | C14: 498434310 | D14: БЖУР143 | E14: Журналистика | F14: 9 | G14: 10 | H14: 9 | N14: 9 | R14: 10 | U14: 9 | W14: 8 | Y14: 9 | AA14: 10 | AK14: 10 | AO14: 10 | AP14: 8 | AU14: 9 | AZ14: 9 | BA14: 8 | BB14: 10 | BD14: 9 | BF14: 10 | BG14: 9 | BI14: 10 | BL14: 10 | BO14: 676 | BP14: 195 | BQ14: 21 | BR14: =IF(BQ14 > 0,BP14/BQ14,0) -> 9.285714286 | BS14: =MIN($F14:BN14) -> 8 | BT14: 3
A15: 4 | B15: Смирнова Владислава Константиновна | C15: 498434538 | D15: БЖУР143 | E15: Журналистика | F15: 9 | G15: 10 | H15: 10 | N15: 7 | R15: 10 | U15: 9 | W15: 7 | Y15: 9 | AA15: 10 | AK15: 10 | AO15: 9 | AP15: 7 | AU15: 8 | AZ15: 9 | BA15: 8 | BB15: 10 | BD15: 10 | BF15: 8 | BG15: 9 | BI15: 10 | BL15: 10 | BO15: 651.44 | BP15: 189 | BQ15: 21 | BR15: =IF(BQ15 > 0,BP15/BQ15,0) -> 9 | BS15: =MIN($F15:BN15) -> 7 | BT15: 4
A16: 5 | B16: Гулина Дарья Николаевна | C16: 499631216 | D16: БЖУР142 | E16: Журналистика | F16: 9 | G16: 10 | H16: 10 | N16: 8 | R16: 10 | U16: 8 | W16: 7 | Y16: 8 | AA16: 10 | AK16: 10 | AO16: 9 | AP16: 10 | AU16: 9 | AZ16: 9 | BA16: 8 | BB16: 8 | BD16: 8 | BF16: 9 | BG16: 9 | BI16: 9 | BL16: 10 | BO16: 644.44 | BP16: 188 | BQ16: 21 | BR16: =IF(BQ16 > 0,BP16/BQ16,0) -> 8.952380952 | BS16: =MIN($F16:BN16) -> 7 | BT16: 5
A17: 6 | B17: Аюпова Арина Альбертовна | C17: 498435818 | D17: БЖУР143 | E17: Журналистика | F17: 9 | G17: 10 | H17: 10 | N17: 9 | R17: 10 | U17: 9 | W17: 8 | Y17: 9 | AA17: 10 | AK17: 10 | AO17: 9 | AP17: 9 | AU17: 7 | AZ17: 9 | BA17: 7 | BB17: 10 | BD17: 8 | BF17: 9 | BG17: 9 | BI17: 8 | BL17: 10 | BO17: 642.12 | BP17: 189 | BQ17: 21 | BR17: =IF(BQ17 > 0,BP17/BQ17,0) -> 9 | BS17: =MIN($F17:BN17) -> 7 | BT17: 6
A18: 7 | B18: Белюга Татьяна Сергеевна | C18: 498436205 | D18: БЖУР143 | E18: Журналистика | F18: 8 | G18: 10 | H18: 9 | N18: 9 | R18: 10 | U18: 10 | W18: 8 | Y18: 9 | AA18: 10 | AK18: 10 | AO18: 9 | AP18: 9 | AU18: 8 | AZ18: 9 | BA18: 9 | BB18: 10 | BD18: 10 | BF18: 10 | BI18: 10 | BL18: 10 | BO18: 632.56 | BP18: 187 | BQ18: 20 | BR18: =IF(BQ18 > 0,BP18/BQ18,0) -> 9.35 | BS18: =MIN($F18:BN18) -> 8 | BT18: 7
A19: 8 | B19: Тимошенкова Мария Александровна | C19: 498434914 | D19: БЖУР141 | E19: Журналистика | F19: 9 | G19: 10 | H19: 10 | N19: 9 | R19: 10 | U19: 10 | W19: 7 | Y19: 9 | AA19: 9 | AK19: 10 | AO19: 9 | AP19: 9 | AU19: 10 | AZ19: 8 | BA19: 8 | BB19: 8 | BD19: 6 | BF19: 9 | BG19: 8 | BI19: 8 | BL19: 10 | BO19: 629.44 | BP19: 186 | BQ19: 21 | BR19: =IF(BQ19 > 0,BP19/BQ19,0) -> 8.857142857 | BS19: =MIN($F19:BN19) -> 6 | BT19: 8
A20: 9 | B20: Лаптев Андрей Вячеславович | C20: 498436133 | D20: БЖУР142 | E20: Журналистика | F20: 9 | G20: 10 | H20: 10 | N20: 8 | R20: 10 | U20: 8 | W20: 8 | Y20: 10 | AA20: 10 | AK20: 10 | AO20: 9 | AP20: 10 | AU20: 7 | AZ20: 7 | BA20: 8 | BB20: 10 | BD20: 6 | BE20: 10 | BF20: 8 | BG20: 9 | BI20: 9 | BL20: 10 | BO20: 627.56 | BP20: 196 | BQ20: 22 | BR20: =IF(BQ20 > 0,BP20/BQ20,0) -> 8.909090909 | BS20: =MIN($F20:BN20) -> 6 | BT20: 9
A21: 10 | B21: Спирин Максим Геннадьевич | C21: 498434786 | D21: БЖУР143 | E21: Журналистика | F21: 9 | G21: 10 | H21: 10 | N21: 8 | R21: 10 | U21: 9 | W21: 7 | Y21: 8 | AA21: 10 | AK21: 10 | AO21: 9 | AP21: 7 | AU21: 9 | AZ21: 9 | BA21: 8 | BB21: 10 | BD21: 8 | BE21: 10 | BF21: 9 | BG21: 8 | BI21: 7 | BL21: 10 | BO21: 627.44 | BP21: 195 | BQ21: 22 | BR21: =IF(BQ21 > 0,BP21/BQ21,0) -> 8.863636364 | BS21: =MIN($F21:BN21) -> 7 | BT21: 10
A22: 11 | B22: Сорокина Анастасия Андреевна | C22: 498435355 | D22: БЖУР142 | E22: Журналистика | F22: 9 | G22: 10 | H22: 10 | N22: 8 | R22: 10 | U22: 9 | W22: 6 | Y22: 9 | AA22: 10 | AK22: 10 | AO22: 9 | AP22: 10 | AU22: 8 | AZ22: 7 | BA22: 6 | BB22: 9 | BD22: 9 | BF22: 8 | BG22: 9 | BI22: 9 | BL22: 10 | BO22: 623 | BP22: 185 | BQ22: 21 | BR22: =IF(BQ22 > 0,BP22/BQ22,0) -> 8.80952381 | BS22: =MIN($F22:BN22) -> 6 | BT22: 11
A23: 12 | B23: Казарновский Павел Леонидович | C23: 498435480 | D23: БЖУР141 | E23: Журналистика | F23: 8 | G23: 10 | H23: 10 | N23: 9 | R23: 10 | U23: 10 | W23: 7 | Y23: 8 | AA23: 9 | AK23: 10 | AO23: 10 | AP23: 8 | AU23: 8 | AZ23: 9 | BA23: 8 | BB23: 7 | BD23: 7 | BF23: 8 | BG23: 8 | BI23: 8 | BL23: 10 | BO23: 622.56 | BP23: 182 | BQ23: 21 | BR23: =IF(BQ23 > 0,BP23/BQ23,0) -> 8.666666667 | BS23: =MIN($F23:BN23) -> 7 | BT23: 12
A24: 13 | B24: Сапонова Анастасия Владимировна | C24: 498436063 | D24: БЖУР143 | E24: Журналистика | F24: 9 | G24: 10 | H24: 9 | N24: 6 | R24: 8 | U24: 9 | W24: 7 | Y24: 8 | AA24: 8 | AK24: 10 | AO24: 9 | AP24: 9 | AU24: 6 | AZ24: 9 | BA24: 7 | BB24: 10 | BD24: 9 | BF24: 10 | BG24: 8 | BI24: 10 | BL24: 10 | BO24: 613 | BP24: 181 | BQ24: 21 | BR24: =IF(BQ24 > 0,BP24/BQ24,0) -> 8.619047619 | BS24: =MIN($F24:BN24) -> 6 | BT24: 13
A25: 14 | B25: Бережная Анна Андреевна | C25: 509644468 | D25: БЖУР141 | E25: Журналистика | F25: 8 | G25: 10 | H25: 10 | N25: 8 | R25: 10 | U25: 10 | W25: 6 | Y25: 9 | AA25: 8 | AK25: 10 | AO25: 9 | AP25: 9 | AU25: 8 | AZ25: 9 | BA25: 7 | BB25: 7 | BD25: 8 | BE25: 8 | BF25: 9 | BG25: 8 | BI25: 7 | BL25: 10 | BO25: 611 | BP25: 188 | BQ25: 22 | BR25: =IF(BQ25 > 0,BP25/BQ25,0) -> 8.545454545 | BS25: =MIN($F25:BN25) -> 6 | BT25: 14
A26: 15 | B26: Маслаков Денис Андреевич | C26: 498436229 | D26: БЖУР143 | E26: Журналистика | F26: 9 | G26: 10 | H26: 10 | N26: 7 | R26: 10 | U26: 9 | W26: 7 | Y26: 8 | AA26: 10 | AK26: 10 | AO26: 10 | AP26: 8 | AU26: 7 | AZ26: 8 | BA26: 7 | BB26: 10 | BD26: 8 | BF26: 10 | BG26: 8 | BI26: 6 | BL26: 10 | BO26: 609 | BP26: 182 | BQ26: 21 | BR26: =IF(BQ26 > 0,BP26/BQ26,0) -> 8.666666667 | BS26: =MIN($F26:BN26) -> 6 | BT26: 15
A27: 16 | B27: Михайлиди Александра Христофоровна | C27: 498435454 | D27: БЖУР143 | E27: Журналистика | F27: 9 | G27: 10 | H27: 10 | N27: 7 | R27: 9 | U27: 10 | W27: 7 | Y27: 8 | AA27: 10 | AK27: 10 | AO27: 9 | AP27: 9 | AU27: 7 | AZ27: 9 | BA27: 6 | BB27: 10 | BD27: 9 | BF27: 8 | BG27: 8 | BI27: 7 | BL27: 10 | BO27: 608 | BP27: 182 | BQ27: 21 | BR27: =IF(BQ27 > 0,BP27/BQ27,0) -> 8.666666667 | BS27: =MIN($F27:BN27) -> 6 | BT27: 16
A28: 17 | B28: Мельникова Ксения Витальевна | C28: 515640294 | D28: БЖУР142 | E28: Журналистика | F28: 6 | G28: 10 | H28: 10 | N28: 8 | R28: 10 | U28: 9 | W28: 7 | Y28: 10 | AA28: 8 | AK28: 10 | AO28: 7 | AP28: 10 | AU28: 8 | AZ28: 10 | BA28: 7 | BB28: 10 | BD28: 9 | BF28: 10 | BI28: 10 | BL28: 10 | BO28: 607 | BP28: 179 | BQ28: 20 | BR28: =IF(BQ28 > 0,BP28/BQ28,0) -> 8.95 | BS28: =MIN($F28:BN28) -> 6 | BT28: 17
A29: 18 - 19 | B29: Финутикова Дарья Николаевна | C29: 498434478 | D29: БЖУР143 | E29: Журналистика | F29: 8 | G29: 10 | H29: 9 | N29: 7 | R29: 10 | U29: 9 | W29: 7 | Y29: 8 | AA29: 9 | AK29: 10 | AO29: 8 | AP29: 9 | AU29: 7 | AZ29: 7 | BA29: 7 | BB29: 10 | BD29: 8 | BF29: 8 | BG29: 8 | BI29: 10 | BL29: 10 | BO29: 603 | BP29: 179 | BQ29: 21 | BR29: =IF(BQ29 > 0,BP29/BQ29,0) -> 8.523809524 | BS29: =MIN($F29:BN29) -> 7 | BT29: 18
B30: Мельник Анна Геннадьевна | C30: 498434226 | D30: БЖУР141 | E30: Журналистика | G30: 9 | J30: 9 | L30: 8 | R30: 10 | U30: 10 | W30: 5 | AA30: 9 | AD30: 8 | AJ30: 9 | AK30: 10 | AO30: 10 | AP30: 10 | AU30: 8 | AZ30: 8 | BA30: 7 | BB30: 9 | BD30: 6 | BF30: 8 | BG30: 8 | BI30: 8 | BL30: 10 | BO30: 603 | BP30: 179 | BQ30: 21 | BR30: =IF(BQ30 > 0,BP30/BQ30,0) -> 8.523809524 | BS30: =MIN($F30:BN30) -> 5 | BT30: 19
A31: 20 | B31: Николаева Лада Сергеевна | C31: 498434358 | D31: БЖУР141 | E31: Журналистика | F31: 7 | G31: 10 | H31: 10 | N31: 9 | R31: 10 | U31: 10 | W31: 6 | Y31: 8 | AA31: 8 | AK31: 10 | AO31: 10 | AP31: 9 | AU31: 9 | AZ31: 6 | BA31: 8 | BB31: 9 | BD31: 7 | BF31: 9 | BG31: 7 | BI31: 8 | BL31: 10 | BO31: 602 | BP31: 180 | BQ31: 21 | BR31: =IF(BQ31 > 0,BP31/BQ31,0) -> 8.571428571 | BS31: =MIN($F31:BN31) -> 6 | BT31: 20
A32: 21 | B32: Ворошилов Николай Михайлович | C32: 498434390 | D32: БЖУР142 | E32: Журналистика | F32: 8 | G32: 10 | H32: 9 | N32: 6 | R32: 9 | U32: 7 | W32: 7 | Y32: 8 | AA32: 9 | AK32: 10 | AO32: 8 | AP32: 10 | AU32: 8 | AZ32: 7 | BA32: 8 | BB32: 9 | BD32: 7 | BF32: 10 | BG32: 9 | BI32: 9 | BL32: 10 | BO32: 601.88 | BP32: 178 | BQ32: 21 | BR32: =IF(BQ32 > 0,BP32/BQ32,0) -> 8.476190476 | BS32: =MIN($F32:BN32) -> 6 | BT32: 21
A33: 22 | B33: Кушнир Дарья Андреевна | C33: 498434758 | D33: БЖУР141 | E33: Журналистика | F33: 8 | G33: 10 | H33: 10 | N33: 8 | R33: 8 | U33: 10 | W33: 7 | Y33: 8 | AA33: 8 | AK33: 10 | AO33: 6 | AP33: 8 | AU33: 8 | AZ33: 8 | BA33: 8 | BB33: 8 | BD33: 7 | BE33: 10 | BF33: 9 | BG33: 9 | BI33: 10 | BL33: 10 | BO33: 601 | BP33: 188 | BQ33: 22 | BR33: =IF(BQ33 > 0,BP33/BQ33,0) -> 8.545454545 | BS33: =MIN($F33:BN33) -> 6 | BT33: 22
A34: 23 | B34: Иващенко Екатерина Викторовна | C34: 498434698 | D34: БЖУР142 | E34: Журналистика | G34: 9 | J34: 10 | L34: 9 | R34: 10 | W34: 8 | AA34: 9 | AD34: 9 | AG34: 9 | AJ34: 10 | AK34: 10 | AO34: 9 | AP34: 10 | AU34: 9 | AZ34: 8 | BA34: 8 | BB34: 9 | BD34: 8 | BF34: 9 | BI34: 8 | BJ34: 10 | BL34: 10 | BO34: 600 | BP34: 191 | BQ34: 21 | BR34: =IF(BQ34 > 0,BP34/BQ34,0) -> 9.095238095 | BS34: =MIN($F34:BN34) -> 8 | BT34: 23
A35: 24 | B35: Клименко Анастасия Сергеевна | C35: 515640238 | D35: БЖУР142 | E35: Журналистика | F35: 9 | G35: 10 | H35: 10 | N35: 10 | R35: 10 | U35: 8 | W35: 8 | Y35: 10 | AA35: 10 | AK35: 10 | AO35: 8 | AP35: 10 | AU35: 9 | AZ35: 8 | BA35: 7 | BB35: 10 | BD35: 8 | BF35: 9 | BI35: 7 | BL35: 10 | BO35: 596.56 | BP35: 181 | BQ35: 20 | BR35: =IF(BQ35 > 0,BP35/BQ35,0) -> 9.05 | BS35: =MIN($F35:BN35) -> 7 | BT35: 24
A36: 25 | B36: Лучина Анна Александровна | C36: 498434450 | D36: БЖУР141 | E36: Журналистика | F36: 7 | G36: 10 | H36: 10 | N36: 9 | R36: 10 | U36: 10 | W36: 8 | Y36: 9 | AA36: 10 | AK36: 10 | AO36: 9 | AP36: 9 | AU36: 8 | AZ36: 7 | BA36: 7 | BB36: 8 | BD36: 8 | BE36: 10 | BF36: 9 | BI36: 10 | BL36: 10 | BO36: 595.56 | BP36: 188 | BQ36: 21 | BR36: =IF(BQ36 > 0,BP36/BQ36,0) -> 8.952380952 | BS36: =MIN($F36:BN36) -> 7 | BT36: 25
A37: 26 | B37: Кошеварова Елена Александровна | C37: 498435766 | D37: БЖУР141 | E37: Журналистика | F37: 8 | G37: 10 | H37: 10 | N37: 6 | R37: 10 | U37: 10 | W37: 7 | Y37: 8 | AA37: 10 | AK37: 10 | AO37: 9 | AP37: 10 | AU37: 6 | AZ37: 8 | BA37: 8 | BB37: 4 | BD37: 8 | BF37: 9 | BG37: 8 | BI37: 7 | BL37: 10 | BO37: 595 | BP37: 176 | BQ37: 21 | BR37: =IF(BQ37 > 0,BP37/BQ37,0) -> 8.380952381 | BS37: =MIN($F37:BN37) -> 4 | BT37: 26
A38: 27 | B38: Казаков Илья Викторович | C38: 498436257 | D38: БЖУР143 | E38: Журналистика | F38: 7 | G38: 10 | H38: 10 | N38: 9 | R38: 10 | U38: 10 | W38: 7 | Y38: 8 | AA38: 10 | AK38: 10 | AO38: 8 | AP38: 8 | AU38: 7 | AZ38: 9 | BA38: 8 | BB38: 10 | BD38: 8 | BF38: 8 | BI38: 10 | BL38: 10 | BO38: 593.12 | BP38: 177 | BQ38: 20 | BR38: =IF(BQ38 > 0,BP38/BQ38,0) -> 8.85 | BS38: =MIN($F38:BN38) -> 7 | BT38: 27
A39: 28 | B39: Микеладзе Елизавета Ираклиевна | C39: 498435405 | D39: БЖУР141 | E39: Журналистика | G39: 10 | H39: 10 | J39: 10 | N39: 9 | R39: 10 | T39: 8 | U39: 10 | W39: 8 | Y39: 7 | AA39: 9 | AK39: 10 | AO39: 8 | AP39: 8 | AQ39: 8 | AU39: 9 | AZ39: 9 | BA39: 7 | BB39: 9 | BD39: 7 | BF39: 8 | BI39: 5 | BL39: 10 | BO39: 592 | BP39: 189 | BQ39: 22 | BR39: =IF(BQ39 > 0,BP39/BQ39,0) -> 8.590909091 | BS39: =MIN($F39:BN39) -> 5 | BT39: 28
A40: 29 | B40: Калоева Лидия Алановна | C40: 498434854 | D40: БЖУР142 | E40: Журналистика | F40: 9 | G40: 10 | H40: 10 | N40: 7 | R40: 10 | U40: 7 | W40: 8 | Y40: 8 | AA40: 9 | AK40: 10 | AO40: 8 | AP40: 10 | AU40: 8 | AZ40: 5 | BA40: 7 | BB40: 9 | BD40: 8 | BE40: 10 | BF40: 8 | BG40: 8 | BI40: 9 | BL40: 10 | BO40: 590.44 | BP40: 188 | BQ40: 22 | BR40: =IF(BQ40 > 0,BP40/BQ40,0) -> 8.545454545 | BS40: =MIN($F40:BN40) -> 5 | BT40: 29
A41: 30 - 31 | B41: Тороп Анастасия Леонидовна | C41: 498435428 | D41: БЖУР142 | E41: Журналистика | F41: 9 | G41: 10 | H41: 10 | N41: 8 | R41: 10 | U41: 8 | W41: 8 | Y41: 9 | AA41: 10 | AK41: 10 | AO41: 8 | AP41: 10 | AU41: 8 | AZ41: 8 | BA41: 7 | BB41: 10 | BD41: 9 | BF41: 9 | BI41: 8 | BL41: 10 | BO41: 590 | BP41: 179 | BQ41: 20 | BR41: =IF(BQ41 > 0,BP41/BQ41,0) -> 8.95 | BS41: =MIN($F41:BN41) -> 7 | BT41: 30
B42: Волкова Мария Владимировна | C42: 498435979 | D42: БЖУР141 | E42: Журналистика | F42: 8 | G42: 10 | H42: 10 | N42: 8 | R42: 10 | U42: 10 | W42: 8 | Y42: 8 | AA42: 10 | AK42: 10 | AO42: 9 | AP42: 9 | AU42: 8 | AZ42: 9 | BA42: 8 | BB42: 7 | BD42: 9 | BF42: 9 | BI42: 7 | BL42: 10 | BO42: 590 | BP42: 177 | BQ42: 20 | BR42: =IF(BQ42 > 0,BP42/BQ42,0) -> 8.85 | BS42: =MIN($F42:BN42) -> 7 | BT42: 31
A43: 32 | B43: Шульга Арина Степановна | C43: 498436108 | D43: БЖУР143 | E43: Журналистика | F43: 9 | G43: 10 | H43: 9 | N43: 9 | R43: 10 | U43: 9 | W43: 7 | Y43: 9 | AA43: 9 | AK43: 10 | AO43: 9 | AP43: 8 | AU43: 9 | AZ43: 8 | BA43: 8 | BB43: 10 | BD43: 8 | BE43: 10 | BF43: 8 | BI43: 8 | BL43: 10 | BO43: 587 | BP43: 187 | BQ43: 21 | BR43: =IF(BQ43 > 0,BP43/BQ43,0) -> 8.904761905 | BS43: =MIN($F43:BN43) -> 7 | BT43: 32
A44: 33 | B44: Мигунова Марья Олеговна | C44: 498434730 | D44: БЖУР143 | E44: Журналистика | F44: 8 | G44: 10 | H44: 10 | N44: 9 | R44: 9 | U44: 9 | W44: 8 | Y44: 9 | AA44: 9 | AK44: 10 | AO44: 9 | AP44: 8 | AU44: 9 | AZ44: 9 | BA44: 7 | BB44: 9 | BD44: 8 | BF44: 10 | BI44: 6 | BL44: 10 | BO44: 584 | BP44: 176 | BQ44: 20 | BR44: =IF(BQ44 > 0,BP44/BQ44,0) -> 8.8 | BS44: =MIN($F44:BN44) -> 6 | BT44: 33
A45: 34 | B45: Вартумян Елена Сергеевна | C45: 498436010 | D45: БЖУР141 | E45: Журналистика | F45: 7 | G45: 10 | H45: 10 | N45: 8 | R45: 10 | U45: 10 | W45: 7 | Y45: 8 | AA45: 9 | AK45: 10 | AO45: 8 | AP45: 9 | AU45: 8 | AZ45: 7 | BA45: 7 | BB45: 6 | BD45: 8 | BE45: 8 | BF45: 9 | BG45: 7 | BI45: 6 | BL45: 10 | BO45: 581 | BP45: 182 | BQ45: 22 | BR45: =IF(BQ45 > 0,BP45/BQ45,0) -> 8.272727273 | BS45: =MIN($F45:BN45) -> 6 | BT45: 34
A46: 35 | B46: Сенчугова Екатерина Игоревна | C46: 498435875 | D46: БЖУР141 | E46: Журналистика | F46: 8 | G46: 10 | H46: 10 | N46: 8 | R46: 9 | U46: 10 | W46: 6 | Y46: 8 | AA46: 10 | AK46: 10 | AO46: 8 | AP46: 10 | AU46: 7 | AZ46: 8 | BA46: 7 | BB46: 9 | BD46: 8 | BE46: 9 | BF46: 10 | BI46: 10 | BL46: 10 | BO46: 580.56 | BP46: 185 | BQ46: 21 | BR46: =IF(BQ46 > 0,BP46/BQ46,0) -> 8.80952381 | BS46: =MIN($F46:BN46) -> 6 | BT46: 35
A47: 36 | B47: Журавлёв Илья Владимирович | C47: 499631190 | D47: БЖУР141 | E47: Журналистика | F47: 8 | G47: 10 | H47: 10 | N47: 7 | R47: 9 | U47: 10 | W47: 7 | Y47: 8 | AA47: 10 | AK47: 10 | AO47: 8 | AP47: 10 | AU47: 5 | AZ47: 8 | BA47: 8 | BB47: 9 | BD47: 4 | BF47: 9 | BG47: 10 | BI47: 5 | BL47: 10 | BO47: 576.12 | BP47: 175 | BQ47: 21 | BR47: =IF(BQ47 > 0,BP47/BQ47,0) -> 8.333333333 | BS47: =MIN($F47:BN47) -> 4 | BT47: 36
A48: 37 | B48: Красильников Иван Сергеевич | C48: 498434970 | D48: БЖУР142 | E48: Журналистика | F48: 9 | G48: 9 | L48: 9 | R48: 10 | W48: 8 | AA48: 7 | AD48: 9 | AG48: 10 | AJ48: 9 | AK48: 10 | AO48: 9 | AP48: 10 | AU48: 9 | AZ48: 7 | BA48: 7 | BB48: 10 | BD48: 8 | BF48: 8 | BI48: 8 | BL48: 10 | BO48: 575 | BP48: 176 | BQ48: 20 | BR48: =IF(BQ48 > 0,BP48/BQ48,0) -> 8.8 | BS48: =MIN($F48:BN48) -> 7 | BT48: 37
A49: 38 | B49: Барсукова Анна Дмитриевна | C49: 498435845 | D49: БЖУР141 | E49: Журналистика | F49: 8 | G49: 10 | H49: 9 | N49: 8 | R49: 10 | U49: 10 | W49: 7 | Y49: 7 | AA49: 10 | AK49: 10 | AO49: 9 | AP49: 9 | AU49: 8 | AZ49: 8 | BA49: 8 | BB49: 7 | BD49: 6 | BF49: 8 | BI49: 10 | BL49: 10 | BO49: 574 | BP49: 172 | BQ49: 20 | BR49: =IF(BQ49 > 0,BP49/BQ49,0) -> 8.6 | BS49: =MIN($F49:BN49) -> 6 | BT49: 38
A50: 39 | B50: Фисенко Екатерина Антоновна | C50: 498435190 | D50: БЖУР142 | E50: Журналистика | F50: 9 | G50: 10 | H50: 9 | N50: 8 | R50: 10 | U50: 8 | W50: 7 | Y50: 9 | AA50: 8 | AK50: 10 | AO50: 9 | AP50: 10 | AU50: 8 | AZ50: 7 | BA50: 7 | BB50: 9 | BD50: 7 | BF50: 8 | BI50: 10 | BL50: 10 | BO50: 572 | BP50: 173 | BQ50: 20 | BR50: =IF(BQ50 > 0,BP50/BQ50,0) -> 8.65 | BS50: =MIN($F50:BN50) -> 7 | BT50: 39
A51: 40 | B51: Екомасова Анна Олеговна | C51: 498434614 | D51: БЖУР141 | E51: Журналистика | G51: 10 | J51: 10 | L51: 8 | R51: 10 | T51: 8 | U51: 10 | W51: 6 | AA51: 7 | AD51: 8 | AJ51: 8 | AK51: 10 | AO51: 8 | AP51: 9 | AQ51: 8 | AU51: 6 | AZ51: 9 | BA51: 7 | BB51: 8 | BD51: 7 | BF51: 9 | BI51: 6 | BL51: 10 | BO51: 570.12 | BP51: 182 | BQ51: 22 | BR51: =IF(BQ51 > 0,BP51/BQ51,0) -> 8.272727273 | BS51: =MIN($F51:BN51) -> 6 | BT51: 40
A52: 41 | B52: Емельянова Лидия Станиславовна | C52: 498435792 | D52: БЖУР142 | E52: Журналистика | F52: 8 | G52: 10 | H52: 9 | N52: 7 | R52: 9 | U52: 9 | W52: 7 | Y52: 8 | AA52: 9 | AK52: 10 | AO52: 10 | AP52: 10 | AU52: 7 | AZ52: 8 | BA52: 8 | BB52: 8 | BD52: 8 | BE52: 10 | BF52: 9 | BI52: 8 | BL52: 10 | BO52: 569 | BP52: 182 | BQ52: 21 | BR52: =IF(BQ52 > 0,BP52/BQ52,0) -> 8.666666667 | BS52: =MIN($F52:BN52) -> 7 | BT52: 41
A53: 42 | B53: Пендина Полина Владимировна | C53: 498436157 | D53: БЖУР142 | E53: Журналистика | F53: 8 | G53: 10 | H53: 10 | N53: 8 | R53: 10 | U53: 9 | W53: 7 | Y53: 9 | AA53: 8 | AK53: 10 | AO53: 7 | AP53: 10 | AU53: 8 | AZ53: 9 | BA53: 7 | BB53: 7 | BD53: 8 | BF53: 8 | BI53: 7 | BL53: 10 | BO53: 561 | BP53: 170 | BQ53: 20 | BR53: =IF(BQ53 > 0,BP53/BQ53,0) -> 8.5 | BS53: =MIN($F53:BN53) -> 7 | BT53: 42
A54: 43 | B54: Бочаров Иван Михайлович | C54: 498435054 | D54: БЖУР142 | E54: Журналистика | F54: 9 | G54: 10 | H54: 10 | N54: 8 | R54: 10 | U54: 9 | W54: 8 | Y54: 8 | AA54: 10 | AK54: 10 | AO54: 9 | AP54: 10 | AU54: 9 | AZ54: 7 | BA54: 8 | BB54: 9 | BD54: 7 | BE54: 10 | BF54: 9 | BI54: 4 | BL54: 10 | BO54: 559.44 | BP54: 184 | BQ54: 21 | BR54: =IF(BQ54 > 0,BP54/BQ54,0) -> 8.761904762 | BS54: =MIN($F54:BN54) -> 4 | BT54: 43
A55: 44 | B55: Федоренко Наталия Олеговна | C55: 498434506 | D55: БЖУР141 | E55: Журналистика | F55: 8 | G55: 10 | H55: 9 | N55: 8 | R55: 10 | U55: 10 | W55: 8 | Y55: 8 | AA55: 8 | AK55: 10 | AO55: 5 | AP55: 8 | AU55: 8 | AZ55: 9 | BA55: 8 | BB55: 8 | BD55: 7 | BF55: 8 | BI55: 8 | BL55: 10 | BO55: 554 | BP55: 168 | BQ55: 20 | BR55: =IF(BQ55 > 0,BP55/BQ55,0) -> 8.4 | BS55: =MIN($F55:BN55) -> 5 | BT55: 44
A56: 45 | B56: Иванкина Наталья Владиславовна | C56: 498434334 | D56: БЖУР143 | E56: Журналистика | F56: 9 | G56: 10 | H56: 10 | N56: 6 | R56: 10 | U56: 9 | W56: 6 | Y56: 9 | AA56: 10 | AK56: 10 | AO56: 9 | AP56: 9 | AU56: 5 | AZ56: 8 | BA56: 7 | BB56: 10 | BD56: 8 | BF56: 8 | BI56: 7 | BL56: 10 | BO56: 552.56 | BP56: 170 | BQ56: 20 | BR56: =IF(BQ56 > 0,BP56/BQ56,0) -> 8.5 | BS56: =MIN($F56:BN56) -> 5 | BT56: 45
A57: 46 | B57: Фролова Виктория Александровна | C57: 498436040 | D57: БЖУР141 | E57: Журналистика | F57: 9 | G57: 10 | H57: 10 | N57: 7 | R57: 10 | U57: 10 | W57: 7 | Y57: 8 | AA57: 10 | AK57: 10 | AO57: 10 | AP57: 9 | AU57: 6 | AZ57: 7 | BA57: 8 | BB57: 9 | BD57: 7 | BF57: 8 | BI57: 6 | BL57: 10 | BO57: 551.56 | BP57: 171 | BQ57: 20 | BR57: =IF(BQ57 > 0,BP57/BQ57,0) -> 8.55 | BS57: =MIN($F57:BN57) -> 6 | BT57: 46
A58: 47 | B58: Гимаева Майя Родионовна | C58: 498435329 | D58: БЖУР142 | E58: Журналистика | F58: 9 | G58: 10 | H58: 10 | N58: 8 | R58: 9 | U58: 8 | W58: 7 | Y58: 7 | AA58: 8 | AK58: 10 | AO58: 9 | AP58: 10 | AU58: 7 | AZ58: 8 | BA58: 7 | BB58: 8 | BD58: 8 | BE58: 10 | BF58: 9 | BI58: 7 | BL58: 10 | BO58: 549.56 | BP58: 179 | BQ58: 21 | BR58: =IF(BQ58 > 0,BP58/BQ58,0) -> 8.523809524 | BS58: =MIN($F58:BN58) -> 7 | BT58: 47
A59: 48 | B59: Гандзюк Оксана Николаевна | C59: 498435026 | D59: БЖУР141 | E59: Журналистика | F59: 8 | G59: 10 | H59: 10 | N59: 8 | R59: 10 | U59: 10 | W59: 6 | Y59: 8 | AA59: 9 | AK59: 10 | AO59: 8 | AP59: 8 | AU59: 8 | AZ59: 7 | BA59: 8 | BB59: 7 | BD59: 8 | BE59: 9 | BF59: 8 | BI59: 7 | BL59: 10 | BO59: 549 | BP59: 177 | BQ59: 21 | BR59: =IF(BQ59 > 0,BP59/BQ59,0) -> 8.428571429 | BS59: =MIN($F59:BN59) -> 6 | BT59: 48
A60: 49 | B60: Самиленко Софья Игоревна | C60: 498435377 | D60: БЖУР141 | E60: Журналистика | F60: 7 | G60: 10 | H60: 10 | N60: 7 | R60: 10 | U60: 10 | W60: 7 | Y60: 7 | AA60: 10 | AK60: 10 | AO60: 9 | AP60: 9 | AU60: 7 | AZ60: 7 | BA60: 7 | BB60: 8 | BD60: 8 | BE60: 8 | BF60: 8 | BI60: 7 | BL60: 10 | BO60: 548 | BP60: 176 | BQ60: 21 | BR60: =IF(BQ60 > 0,BP60/BQ60,0) -> 8.380952381 | BS60: =MIN($F60:BN60) -> 7 | BT60: 49
A61: 50 | B61: Дудкина Наталья - | C61: 541015553 | D61: БЖУР141 | E61: Журналистика | F61: 7 | G61: 10 | H61: 10 | N61: 5 | R61: 10 | U61: 10 | W61: 6 | Y61: 8 | AA61: 8 | AK61: 10 | AO61: 9 | AP61: 9 | AU61: 4 | AZ61: 7 | BA61: 7 | BB61: 7 | BD61: 7 | BF61: 9 | BG61: 9 | BI61: 4 | BL61: 10 | BO61: 545.56 | BP61: 166 | BQ61: 21 | BR61: =IF(BQ61 > 0,BP61/BQ61,0) -> 7.904761905 | BS61: =MIN($F61:BN61) -> 4 | BT61: 50
A62: 51 | B62: Аникина Мария Михайловна | C62: 498435509 | D62: БЖУР142 | E62: Журналистика | F62: 7 | G62: 10 | H62: 10 | N62: 6 | R62: 7 | U62: 8 | W62: 7 | Y62: 8 | AA62: 6 | AK62: 10 | AO62: 8 | AP62: 10 | AU62: 7 | AZ62: 6 | BA62: 7 | BB62: 9 | BD62: 8 | BF62: 8 | BG62: 9 | BI62: 6 | BL62: 10 | BO62: 545.44 | BP62: 167 | BQ62: 21 | BR62: =IF(BQ62 > 0,BP62/BQ62,0) -> 7.952380952 | BS62: =MIN($F62:BN62) -> 6 | BT62: 51
A63: 52 | B63: Мещерская Мария Всеволодовна | C63: 498435740 | D63: БЖУР142 | E63: Журналистика | F63: 7 | G63: 10 | H63: 9 | N63: 9 | R63: 10 | U63: 8 | W63: 6 | Y63: 6 | AA63: 8 | AK63: 10 | AO63: 8 | AP63: 10 | AU63: 7 | AZ63: 7 | BA63: 6 | BB63: 7 | BD63: 7 | BF63: 7 | BG63: 7 | BI63: 6 | BL63: 10 | BO63: 544.12 | BP63: 165 | BQ63: 21 | BR63: =IF(BQ63 > 0,BP63/BQ63,0) -> 7.857142857 | BS63: =MIN($F63:BN63) -> 6 | BT63: 52
A64: 53 | B64: Шаботич Амела - | C64: 498434590 | D64: БЖУР142 | E64: Журналистика | F64: 8 | G64: 10 | H64: 10 | N64: 9 | R64: 10 | U64: 9 | W64: 7 | Y64: 7 | AA64: 7 | AK64: 10 | AO64: 8 | AP64: 10 | AU64: 8 | AZ64: 9 | BA64: 6 | BB64: 8 | BD64: 7 | BE64: 9 | BF64: 8 | BI64: 6 | BL64: 10 | BO64: 543.56 | BP64: 176 | BQ64: 21 | BR64: =IF(BQ64 > 0,BP64/BQ64,0) -> 8.380952381 | BS64: =MIN($F64:BN64) -> 6 | BT64: 53
A65: 54 | B65: Зыбина Мария Сергеевна | C65: 498435714 | D65: БЖУР142 | E65: Журналистика | F65: 8 | G65: 10 | H65: 10 | N65: 8 | R65: 7 | U65: 8 | W65: 7 | Y65: 8 | AA65: 9 | AK65: 10 | AO65: 9 | AP65: 10 | AU65: 7 | AZ65: 7 | BA65: 6 | BB65: 7 | BD65: 8 | BF65: 9 | BI65: 8 | BL65: 10 | BO65: 540.56 | BP65: 166 | BQ65: 20 | BR65: =IF(BQ65 > 0,BP65/BQ65,0) -> 8.3 | BS65: =MIN($F65:BN65) -> 6 | BT65: 54
A66: 55 | B66: Глозман Юлия Игоревна | C66: 498435635 | D66: БЖУР143 | E66: Журналистика | F66: 8 | G66: 10 | H66: 10 | N66: 10 | R66: 8 | U66: 9 | W66: 6 | Y66: 7 | AA66: 10 | AK66: 10 | AO66: 9 | AP66: 6 | AU66: 6 | AZ66: 7 | BA66: 6 | BB66: 10 | BD66: 6 | BF66: 8 | BI66: 8 | BL66: 10 | BO66: 531.24 | BP66: 164 | BQ66: 20 | BR66: =IF(BQ66 > 0,BP66/BQ66,0) -> 8.2 | BS66: =MIN($F66:BN66) -> 6 | BT66: 55
A67: 56 | B67: Воронина Екатерина Андреевна | C67: 509644493 | D67: БЖУР143 | E67: Журналистика | F67: 5 | G67: 10 | H67: 9 | N67: 5 | R67: 10 | U67: 8 | W67: 7 | Y67: 7 | AA67: 9 | AK67: 10 | AO67: 9 | AP67: 8 | AU67: 5 | AZ67: 7 | BA67: 5 | BB67: 10 | BD67: 5 | BF67: 8 | BG67: 8 | BI67: 5 | BL67: 10 | BO67: 530 | BP67: 160 | BQ67: 21 | BR67: =IF(BQ67 > 0,BP67/BQ67,0) -> 7.619047619 | BS67: =MIN($F67:BN67) -> 5 | BT67: 56
A68: 57 | B68: Синицына Анастасия Михайловна | C68: 498435086 | D68: БЖУР142 | E68: Журналистика | F68: 7 | G68: 10 | H68: 10 | N68: 6 | R68: 10 | U68: 7 | W68: 7 | Y68: 6 | AA68: 6 | AK68: 10 | AO68: 6 | AP68: 10 | AU68: 8 | AZ68: 8 | BA68: 7 | BB68: 9 | BD68: 5 | BF68: 7 | BG68: 9 | BI68: 4 | BL68: 10 | BO68: 528.88 | BP68: 162 | BQ68: 21 | BR68: =IF(BQ68 > 0,BP68/BQ68,0) -> 7.714285714 | BS68: =MIN($F68:BN68) -> 4 | BT68: 57
A69: 58 | B69: Кондратов Антон Сергеевич | C69: 498435244 | D69: БЖУР142 | E69: Журналистика | F69: 9 | G69: 10 | H69: 9 | N69: 8 | R69: 9 | U69: 9 | W69: 7 | Y69: 8 | AA69: 7 | AK69: 10 | AO69: 9 | AP69: 10 | AU69: 7 | AZ69: 7 | BA69: 6 | BB69: 7 | BD69: 7 | BF69: 7 | BI69: 7 | BL69: 10 | BO69: 525.56 | BP69: 163 | BQ69: 20 | BR69: =IF(BQ69 > 0,BP69/BQ69,0) -> 8.15 | BS69: =MIN($F69:BN69) -> 6 | BT69: 58
A70: 59 | B70: Тальчук Анастасия Вадимовна | C70: 574873939 | D70: БЖУР143 | E70: Журналистика | F70: 9 | G70: 10 | H70: 10 | N70: 7 | R70: 9 | U70: 9 | W70: 8 | Y70: 8 | AA70: 9 | AK70: 10 | AO70: 9 | AP70: 9 | AU70: 8 | AZ70: 8 | BA70: 6 | BB70: 9 | BD70: 7 | BF70: 4 | BI70: 5 | BL70: 10 | BO70: 525.44 | BP70: 164 | BQ70: 20 | BR70: =IF(BQ70 > 0,BP70/BQ70,0) -> 8.2 | BS70: =MIN($F70:BN70) -> 4 | BT70: 59
A71: 60 | B71: Иванова Евгения Александровна | C71: 509644517 | D71: БЖУР141 | E71: Журналистика | F71: 7 | G71: 10 | H71: 10 | N71: 5 | R71: 9 | U71: 10 | W71: 6 | Y71: 7 | AA71: 8 | AK71: 10 | AO71: 8 | AP71: 8 | AU71: 5 | AZ71: 6 | BA71: 6 | BB71: 6 | BD71: 6 | BF71: 8 | BG71: 8 | BI71: 6 | BL71: 10 | BO71: 519 | BP71: 159 | BQ71: 21 | BR71: =IF(BQ71 > 0,BP71/BQ71,0) -> 7.571428571 | BS71: =MIN($F71:BN71) -> 5 | BT71: 60
A72: 61 | B72: Карабанов Андрей Павлович | C72: 498434674 | D72: БЖУР143 | E72: Журналистика | F72: 9 | G72: 10 | H72: 10 | N72: 10 | R72: 8 | U72: 10 | W72: 6 | Y72: 8 | AA72: 8 | AK72: 10 | AO72: 8 | AP72: 8 | AU72: 7 | AZ72: 7 | BA72: 7 | BB72: 10 | BD72: 4 | BF72: 8 | BI72: 6 | BL72: 10 | BO72: 518.68 | BP72: 164 | BQ72: 20 | BR72: =IF(BQ72 > 0,BP72/BQ72,0) -> 8.2 | BS72: =MIN($F72:BN72) -> 4 | BT72: 61
A73: 62 | B73: Булыгина Анастасия Яковлевна | C73: 498435162 | D73: БЖУР141 | E73: Журналистика | G73: 9 | J73: 10 | L73: 9 | R73: 6 | U73: 10 | W73: 6 | AA73: 6 | AD73: 8 | AJ73: 9 | AK73: 10 | AO73: 7 | AP73: 10 | AU73: 7 | AZ73: 9 | BA73: 7 | BB73: 9 | BD73: 6 | BF73: 7 | BI73: 7 | BL73: 10 | BO73: 515.56 | BP73: 162 | BQ73: 20 | BR73: =IF(BQ73 > 0,BP73/BQ73,0) -> 8.1 | BS73: =MIN($F73:BN73) -> 6 | BT73: 62
A74: 63 | B74: Шакиров Шамиль Маратович | C74: 498434826 | D74: БЖУР143 | E74: Журналистика | F74: 9 | G74: 10 | H74: 10 | N74: 5 | R74: 10 | U74: 10 | W74: 6 | Y74: 9 | AA74: 6 | AK74: 10 | AO74: 8 | AP74: 6 | AR74: 5 | AU74: 6 | AZ74: 6 | BA74: 6 | BB74: 8 | BD74: 5 | BF74: 4 | BG74: 7 | BI74: 5 | BL74: 10 | BO74: 511.44 | BP74: 161 | BQ74: 22 | BR74: =IF(BQ74 > 0,BP74/BQ74,0) -> 7.318181818 | BS74: =MIN($F74:BN74) -> 4 | BT74: 63
A75: 64 | B75: Вопиловская Мария Николаевна | C75: 498434254 | D75: БЖУР142 | E75: Журналистика | F75: 7 | G75: 10 | H75: 10 | N75: 8 | R75: 9 | U75: 8 | W75: 7 | Y75: 8 | AA75: 7 | AK75: 10 | AO75: 7 | AP75: 10 | AU75: 7 | AZ75: 6 | BA75: 7 | BB75: 8 | BD75: 7 | BF75: 8 | BI75: 6 | BL75: 10 | BO75: 510.56 | BP75: 160 | BQ75: 20 | BR75: =IF(BQ75 > 0,BP75/BQ75,0) -> 8 | BS75: =MIN($F75:BN75) -> 6 | BT75: 64
A76: 65 | B76: Берняева Евгения Игоревна | C76: 498435271 | D76: БЖУР142 | E76: Журналистика | F76: 8 | G76: 10 | H76: 10 | N76: 5 | R76: 7 | U76: 8 | W76: 7 | Y76: 8 | AA76: 9 | AK76: 10 | AO76: 8 | AP76: 10 | AU76: 7 | AZ76: 7 | BA76: 6 | BB76: 9 | BD76: 7 | BF76: 8 | BI76: 6 | BL76: 10 | BO76: 508.88 | BP76: 160 | BQ76: 20 | BR76: =IF(BQ76 > 0,BP76/BQ76,0) -> 8 | BS76: =MIN($F76:BN76) -> 5 | BT76: 65
A77: 66 | B77: Житпелева Ольга Игоревна | C77: 498435902 | D77: БЖУР143 | E77: Журналистика | F77: 9 | G77: 10 | H77: 10 | Q77: 7 | R77: 7 | U77: 10 | W77: 5 | Y77: 7 | AA77: 4 | AK77: 10 | AO77: 9 | AP77: 6 | AX77: 6 | AZ77: 6 | BA77: 6 | BB77: 10 | BD77: 6 | BF77: 7 | BI77: 4 | BL77: 10 | BO77: 507.11 | BP77: 149 | BQ77: 20 | BR77: =IF(BQ77 > 0,BP77/BQ77,0) -> 7.45 | BS77: =MIN($F77:BN77) -> 4 | BT77: 66
A78: 67 | B78: Шлюпкина Даяна Олеговна | C78: 498435929 | D78: БЖУР141 | E78: Журналистика | F78: 7 | G78: 10 | H78: 8 | N78: 6 | R78: 10 | U78: 10 | W78: 5 | Y78: 8 | AA78: 8 | AK78: 10 | AO78: 10 | AP78: 8 | AU78: 7 | AZ78: 6 | BA78: 7 | BB78: 6 | BD78: 4 | BF78: 8 | BI78: 5 | BL78: 10 | BO78: 493.44 | BP78: 153 | BQ78: 20 | BR78: =IF(BQ78 > 0,BP78/BQ78,0) -> 7.65 | BS78: =MIN($F78:BN78) -> 4 | BT78: 67
A79: 68 | B79: Ходневич Татьяна Сергеевна | C79: 524367546 | D79: БЖУР141 | E79: Журналистика | F79: 4 | G79: 10 | H79: 8 | N79: 4 | R79: 10 | U79: 10 | W79: 6 | Y79: 8 | AA79: 8 | AK79: 10 | AO79: 8 | AP79: 7 | AU79: 6 | AZ79: 8 | BA79: 6 | BB79: 7 | BD79: 7 | BF79: 8 | BI79: 4 | BL79: 10 | BO79: 488.88 | BP79: 149 | BQ79: 20 | BR79: =IF(BQ79 > 0,BP79/BQ79,0) -> 7.45 | BS79: =MIN($F79:BN79) -> 4 | BT79: 68
A80: 69 | B80: Шарипова Лилия Витальевна | C80: 498434946 | D80: БЖУР142 | E80: Журналистика | F80: 9 | G80: 10 | H80: 10 | N80: 8 | R80: 9 | U80: 8 | W80: 8 | Y80: 7 | AA80: 6 | AK80: 10 | AO80: 7 | AP80: 8 | AU80: 7 | AZ80: 5 | BA80: 7 | BB80: 8 | BD80: 6 | BF80: 7 | BI80: 6 | BL80: 10 | BO80: 488.56 | BP80: 156 | BQ80: 20 | BR80: =IF(BQ80 > 0,BP80/BQ80,0) -> 7.8 | BS80: =MIN($F80:BN80) -> 5 | BT80: 69
A81: 70 | B81: Мироненко Надежда Евгеньевна | C81: 498434418 | D81: БЖУР142 | E81: Журналистика | F81: 9 | G81: 10 | H81: 10 | N81: 8 | R81: 10 | U81: 8 | W81: 5 | Y81: 6 | AA81: 7 | AK81: 10 | AO81: 8 | AP81: 10 | AU81: 7 | AZ81: 5 | BA81: 6 | BB81: 9 | BD81: 6 | BE81: 10 | BF81: 8 | BI81: 5 | BL81: 10 | BO81: 485.56 | BP81: 167 | BQ81: 21 | BR81: =IF(BQ81 > 0,BP81/BQ81,0) -> 7.952380952 | BS81: =MIN($F81:BN81) -> 5 | BT81: 70
A82: 71 - 72 | B82: Борзенкова Елизавета Александровна | C82: 498434174 | D82: БЖУР141 | E82: Журналистика | G82: 9 | J82: 9 | L82: 9 | R82: 8 | U82: 10 | W82: 6 | AA82: 7 | AD82: 8 | AJ82: 6 | AK82: 10 | AO82: 7 | AP82: 10 | AU82: 8 | AZ82: 7 | BA82: 6 | BB82: 8 | BD82: 4 | BF82: 7 | BI82: 6 | BL82: 10 | BO82: 484 | BP82: 155 | BQ82: 20 | BR82: =IF(BQ82 > 0,BP82/BQ82,0) -> 7.75 | BS82: =MIN($F82:BN82) -> 4 | BT82: 71
B83: Клыгина Маргарита Александровна | C83: 498434882 | D83: БЖУР141 | E83: Журналистика | F83: 8 | G83: 10 | H83: 9 | N83: 7 | R83: 8 | U83: 10 | W83: 7 | Y83: 7 | AA83: 6 | AK83: 10 | AO83: 10 | AP83: 10 | AU83: 7 | AZ83: 5 | BA83: 6 | BB83: 7 | BD83: 5 | BF83: 8 | BI83: 5 | BL83: 10 | BO83: 484 | BP83: 155 | BQ83: 20 | BR83: =IF(BQ83 > 0,BP83/BQ83,0) -> 7.75 | BS83: =MIN($F83:BN83) -> 5 | BT83: 72
A84: 73 | B84: Сурмина Мария Дмитриевна | C84: 499631271 | D84: БЖУР143 | E84: Журналистика | F84: 8 | G84: 10 | H84: 10 | N84: 5 | R84: 8 | U84: 9 | W84: 6 | Y84: 5 | AA84: 6 | AK84: 10 | AO84: 6 | AP84: 8 | AU84: 6 | AZ84: 6 | BA84: 5 | BB84: 10 | BD84: 7 | BF84: 6 | BG84: 8 | BI84: 5 | BL84: 10 | BO84: 483.44 | BP84: 154 | BQ84: 21 | BR84: =IF(BQ84 > 0,BP84/BQ84,0) -> 7.333333333 | BS84: =MIN($F84:BN84) -> 5 | BT84: 73
A85: 74 | B85: Шубина Дарина Андреевна | C85: 498434150 | D85: БЖУР142 | E85: Журналистика | F85: 9 | G85: 10 | H85: 10 | N85: 6 | R85: 9 | U85: 8 | W85: 7 | Y85: 9 | AA85: 6 | AK85: 10 | AO85: 8 | AP85: 7 | AU85: 6 | AZ85: 7 | BA85: 6 | BB85: 8 | BD85: 6 | BF85: 5 | BI85: 5 | BL85: 10 | BO85: 482 | BP85: 152 | BQ85: 20 | BR85: =IF(BQ85 > 0,BP85/BQ85,0) -> 7.6 | BS85: =MIN($F85:BN85) -> 5 | BT85: 74
A86: 75 - 76 | B86: Авдонина Дарья Романовна | C86: 498435298 | D86: БЖУР141 | E86: Журналистика | F86: 7 | G86: 10 | H86: 10 | N86: 6 | R86: 8 | U86: 10 | W86: 5 | Y86: 7 | AA86: 9 | AK86: 10 | AO86: 9 | AP86: 8 | AU86: 6 | AZ86: 7 | BA86: 6 | BB86: 8 | BD86: 4 | BF86: 7 | BI86: 5 | BL86: 10 | BO86: 480 | BP86: 152 | BQ86: 20 | BR86: =IF(BQ86 > 0,BP86/BQ86,0) -> 7.6 | BS86: =MIN($F86:BN86) -> 4 | BT86: 75
B87: Ишниязова Анастасия Александровна | C87: 524367516 | D87: БЖУР142 | E87: Журналистика | F87: 8 | G87: 10 | H87: 7 | N87: 5 | R87: 10 | U87: 7 | W87: 6 | Y87: 7 | AA87: 6 | AK87: 10 | AO87: 8 | AP87: 10 | AU87: 5 | AZ87: 5 | BA87: 7 | BB87: 8 | BD87: 7 | BF87: 8 | BI87: 7 | BL87: 10 | BO87: 480 | BP87: 151 | BQ87: 20 | BR87: =IF(BQ87 > 0,BP87/BQ87,0) -> 7.55 | BS87: =MIN($F87:BN87) -> 5 | BT87: 76
A88: 77 | B88: Лунина Елена Александровна | C88: 498434642 | D88: БЖУР143 | E88: Журналистика | F88: 9 | G88: 10 | H88: 8 | N88: 9 | R88: 10 | U88: 9 | W88: 5 | Y88: 6 | AA88: 8 | AK88: 10 | AO88: 9 | AP88: 5 | AU88: 7 | AZ88: 6 | BA88: 6 | BB88: 10 | BD88: 5 | BF88: 5 | BI88: 4 | BL88: 10 | BO88: 473.12 | BP88: 151 | BQ88: 20 | BR88: =IF(BQ88 > 0,BP88/BQ88,0) -> 7.55 | BS88: =MIN($F88:BN88) -> 4 | BT88: 77
A89: 78 | B89: Каткова Мария Игоревна | C89: 498435583 | D89: БЖУР142 | E89: Журналистика | F89: 7 | G89: 10 | H89: 9 | N89: 5 | R89: 9 | U89: 8 | W89: 7 | Y89: 7 | AA89: 5 | AK89: 10 | AO89: 7 | AP89: 10 | AU89: 5 | AZ89: 7 | BA89: 7 | BB89: 7 | BD89: 8 | BF89: 8 | BI89: 4 | BL89: 10 | BO89: 473 | BP89: 150 | BQ89: 20 | BR89: =IF(BQ89 > 0,BP89/BQ89,0) -> 7.5 | BS89: =MIN($F89:BN89) -> 4 | BT89: 78
A90: 79 | B90: Манькова Елизавета Сергеевна | C90: 498435609 | D90: БЖУР142 | E90: Журналистика | F90: 8 | G90: 10 | H90: 9 | N90: 7 | R90: 7 | U90: 8 | W90: 6 | Y90: 7 | AA90: 7 | AK90: 10 | AO90: 7 | AP90: 10 | AU90: 6 | AZ90: 7 | BA90: 6 | BB90: 8 | BD90: 6 | BF90: 7 | BI90: 5 | BL90: 10 | BO90: 471.56 | BP90: 151 | BQ90: 20 | BR90: =IF(BQ90 > 0,BP90/BQ90,0) -> 7.55 | BS90: =MIN($F90:BN90) -> 5 | BT90: 79
A91: 80 | B91: Крылова Софья Андреевна | C91: 498436181 | D91: БЖУР143 | E91: Журналистика | F91: 9 | G91: 8 | H91: 9 | N91: 7 | R91: 9 | U91: 8 | W91: 5 | Y91: 8 | AA91: 7 | AK91: 10 | AO91: 8 | AP91: 5 | AU91: 7 | AZ91: 7 | BA91: 8 | BB91: 8 | BD91: 6 | BF91: 5 | BI91: 4 | BL91: 10 | BO91: 471 | BP91: 148 | BQ91: 20 | BR91: =IF(BQ91 > 0,BP91/BQ91,0) -> 7.4 | BS91: =MIN($F91:BN91) -> 4 | BT91: 80
A92: 81 | B92: Глухова Полина Владиславовна | C92: 499631243 | D92: БЖУР141 | E92: Журналистика | F92: 6 | G92: 10 | H92: 9 | N92: 6 | R92: 7 | U92: 10 | W92: 7 | Y92: 8 | AA92: 8 | AK92: 10 | AO92: 8 | AP92: 8 | AU92: 4 | AZ92: 6 | BA92: 7 | BB92: 5 | BD92: 4 | BE92: 7 | BF92: 5 | BG92: 5 | BI92: 4 | BL92: 10 | BO92: 469.12 | BP92: 154 | BQ92: 22 | BR92: =IF(BQ92 > 0,BP92/BQ92,0) -> 7 | BS92: =MIN($F92:BN92) -> 4 | BT92: 81
A93: 82 | B93: Порошина Кристина Вадимовна | C93: 542391073 | D93: БЖУР141 | E93: Журналистика | F93: 8 | G93: 10 | H93: 7 | N93: 5 | R93: 9 | U93: 10 | W93: 5 | Y93: 7 | AA93: 6 | AK93: 10 | AO93: 7 | AP93: 8 | AU93: 5 | AZ93: 7 | BA93: 7 | BB93: 8 | BD93: 4 | BF93: 7 | BI93: 7 | BL93: 10 | BO93: 466 | BP93: 147 | BQ93: 20 | BR93: =IF(BQ93 > 0,BP93/BQ93,0) -> 7.35 | BS93: =MIN($F93:BN93) -> 4 | BT93: 82
A94: 83 | B94: Копелевич Екатерина Ильинична | C94: 498435138 | D94: БЖУР143 | E94: Журналистика | F94: 7 | G94: 10 | H94: 10 | N94: 8 | R94: 4 | U94: 10 | W94: 6 | Y94: 6 | AA94: 5 | AK94: 10 | AO94: 9 | AP94: 6 | AU94: 8 | AZ94: 5 | BA94: 7 | BB94: 10 | BD94: 5 | BF94: 7 | BI94: 6 | BL94: 10 | BO94: 459 | BP94: 149 | BQ94: 20 | BR94: =IF(BQ94 > 0,BP94/BQ94,0) -> 7.45 | BS94: =MIN($F94:BN94) -> 4 | BT94: 83
A95: 84 | B95: Белоиванова Кристина Олеговна | C95: 498434562 | D95: БЖУР142 | E95: Журналистика | G95: 9 | J95: 9 | L95: 9 | R95: 8 | W95: 4 | AA95: 6 | AD95: 9 | AG95: 9 | AJ95: 5 | AK95: 10 | AO95: 4 | AP95: 10 | AU95: 9 | AZ95: 5 | BA95: 5 | BB95: 9 | BD95: 5 | BF95: 7 | BI95: 8 | BL95: 10 | BO95: 458 | BP95: 150 | BQ95: 20 | BR95: =IF(BQ95 > 0,BP95/BQ95,0) -> 7.5 | BS95: =MIN($F95:BN95) -> 4 | BT95: 84
A96: 85 | B96: Гаргарица Елизавета - | C96: 557352459 | D96: БЖУР143 | E96: Журналистика | F96: 8 | G96: 10 | H96: 8 | N96: 5 | R96: 7 | U96: 9 | W96: 6 | Y96: 7 | AA96: 6 | AK96: 10 | AO96: 5 | AP96: 5 | AU96: 4 | AZ96: 7 | BA96: 6 | BB96: 10 | BD96: 5 | BF96: 5 | BG96: 8 | BI96: 4 | BL96: 10 | BO96: 457.56 | BP96: 145 | BQ96: 21 | BR96: =IF(BQ96 > 0,BP96/BQ96,0) -> 6.904761905 | BS96: =MIN($F96:BN96) -> 4 | BT96: 85
A97: 86 | B97: Васильчук Татьяна Алексеевна | C97: 498435535 | D97: БЖУР142 | E97: Журналистика | F97: 7 | G97: 10 | H97: 9 | N97: 6 | R97: 7 | U97: 9 | W97: 6 | Y97: 5 | AA97: 6 | AK97: 10 | AO97: 9 | AP97: 10 | AU97: 7 | AZ97: 4 | BA97: 6 | BB97: 8 | BD97: 6 | BF97: 9 | BI97: 5 | BL97: 10 | BO97: 456.44 | BP97: 149 | BQ97: 20 | BR97: =IF(BQ97 > 0,BP97/BQ97,0) -> 7.45 | BS97: =MIN($F97:BN97) -> 4 | BT97: 86
A98: 87 | B98: Виткова Анастасия Андреевна | C98: 498435688 | D98: БЖУР143 | E98: Журналистика | F98: 8 | G98: 10 | H98: 9 | N98: 6 | R98: 5 | U98: 6 | W98: 5 | Y98: 7 | AA98: 5 | AK98: 10 | AO98: 9 | AP98: 6 | AU98: 6 | AZ98: 7 | BA98: 7 | BB98: 10 | BD98: 5 | BF98: 8 | BI98: 5 | BL98: 10 | BO98: 452 | BP98: 144 | BQ98: 20 | BR98: =IF(BQ98 > 0,BP98/BQ98,0) -> 7.2 | BS98: =MIN($F98:BN98) -> 5 | BT98: 87
A99: 88 | B99: Ким Анна Викторовна | C99: 498434998 | D99: БЖУР143 | E99: Журналистика | F99: 8 | G99: 10 | H99: 10 | N99: 4 | R99: 8 | U99: 9 | W99: 5 | Y99: 8 | AA99: 5 | AK99: 10 | AO99: 9 | AP99: 6 | AU99: 5 | AZ99: 6 | BA99: 6 | BB99: 10 | BD99: 5 | BF99: 6 | BI99: 4 | BL99: 10 | BO99: 443.44 | BP99: 144 | BQ99: 20 | BR99: =IF(BQ99 > 0,BP99/BQ99,0) -> 7.2 | BS99: =MIN($F99:BN99) -> 4 | BT99: 88
A100: 89 | B100: Губин Тимофей Сергеевич | C100: 498435955 | D100: БЖУР143 | E100: Журналистика | F100: 9 | G100: 10 | H100: 10 | N100: 7 | R100: 8 | U100: 8 | W100: 4 | Y100: 6 | AA100: 6 | AK100: 10 | AO100: 6 | AP100: 5 | AU100: 7 | AZ100: 6 | BA100: 6 | BB100: 10 | BD100: 4 | BF100: 5 | BI100: 4 | BL100: 10 | BO100: 427 | BP100: 141 | BQ100: 20 | BR100: =IF(BQ100 > 0,BP100/BQ100,0) -> 7.05 | BS100: =MIN($F100:BN100) -> 4 | BT100: 89
A101: 90 | B101: Ширяева Дарья Алексеевна | C101: 498434282 | D101: БЖУР143 | E101: Журналистика | F101: 8 | G101: 7 | H101: 8 | N101: 4 | R101: 8 | U101: 9 | W101: 4 | Y101: 5 | AA101: 4 | AK101: 10 | AO101: 8 | AP101: 6 | AU101: 6 | AZ101: 6 | BA101: 7 | BB101: 10 | BD101: 4 | BF101: 5 | BI101: 5 | BL101: 10 | BO101: 408.88 | BP101: 134 | BQ101: 20 | BR101: =IF(BQ101 > 0,BP101/BQ101,0) -> 6.7 | BS101: =MIN($F101:BN101) -> 4 | BT101: 90
A102: 91 | B102: Фадеева Анастасия Германовна | C102: 498435110 | D102: БЖУР143 | E102: Журналистика | F102: 8 | G102: 10 | H102: 8 | N102: 7 | R102: 8 | U102: 5 | W102: 4 | Y102: 6 | AA102: 6 | AK102: 10 | AO102: 4 | AP102: 6 | AU102: 6 | AZ102: 7 | BA102: 5 | BB102: 10 | BD102: 4 | BF102: 4 | BI102: 5 | BL102: 10 | BO102: 408.56 | BP102: 133 | BQ102: 20 | BR102: =IF(BQ102 > 0,BP102/BQ102,0) -> 6.65 | BS102: =MIN($F102:BN102) -> 4 | BT102: 91
A103: 92 | B103: Покровская Александра Гаевна | C103: 499631168 | D103: БЖУР143 | E103: Журналистика | G103: 10 | H103: 10 | J103: 8 | R103: 8 | U103: 8 | W103: 5 | Y103: 5 | AA103: 5 | AD103: 6 | AK103: 10 | AO103: 6 | AP103: 5 | AU103: 6 | AZ103: 6 | BA103: 4 | BB103: 10 | BD103: 4 | BF103: 4 | BI103: 4 | BL103: 10 | BO103: 401 | BP103: 134 | BQ103: 20 | BR103: =IF(BQ103 > 0,BP103/BQ103,0) -> 6.7 | BS103: =MIN($F103:BN103) -> 4 | BT103: 92
A104: 93 | B104: Галактионова Маргарита Александровна | C104: 731597562 | D104: БЖУР141 | E104: Журналистика | F104: 8 | H104: нет оценки | P104: 7 | R104: нет оценки | U104: нет оценки | AA104: 8 | AK104: 10 | AO104: 8 | AP104: 9 | AW104: 7 | AZ104: 7 | BA104: 7 | BB104: 7 | BD104: 5 | BF104: 8 | BI104: 7 | BL104: 10 | BO104: 339 | BP104: 108 | BQ104: 14 | BR104: =IF(BQ104 > 0,BP104/BQ104,0) -> 7.714285714 | BS104: =MIN($F104:BN104) -> 5 | BT104: 93
A105: 94 | B105: Курбатова Ксения Алексеевна | C105: 785151717 | D105: БЖУР142 | E105: Журналистика | G105: нет оценки | H105: нет оценки | I105: 9 | P105: 9 | S105: 4 | U105: нет оценки | W105: нет оценки | X105: 8 | AB105: 6 | AL105: 10 | AP105: 10 | AW105: 7 | AY105: 6 | BA105: 5 | BB105: 7 | BD105: 5 | BF105: 7 | BI105: 4 | BM105: 10 | BO105: 324.02 | BP105: 107 | BQ105: 15 | BR105: =IF(BQ105 > 0,BP105/BQ105,0) -> 7.133333333 | BS105: =MIN($F105:BN105) -> 4 | BT105: 94
A106: 95 | B106: Донских Дмитрий Сергеевич | C106: 612385826 | D106: БЖУР141 | E106: Журналистика | G106: нет оценки | H106: нет оценки | I106: 10 | R106: 8 | U106: 10 | W106: нет оценки | Y106: 5 | Z106: 9 | AF106: 5 | AM106: 10 | AO106: 4 | AP106: 7 | AT106: 4 | AZ106: 6 | BA106: 4 | BB106: 7 | BD106: 4 | BF106: 5 | BI106: 4 | BN106: 10 | BO106: 301.35 | BP106: 112 | BQ106: 17 | BR106: =IF(BQ106 > 0,BP106/BQ106,0) -> 6.588235294 | BS106: =MIN($F106:BN106) -> 4 | BT106: 95
A107: 96 | B107: Кругляков Иван Евгеньевич | C107: 736567271 | E107: Журналистика | F107: 7 | H107: нет оценки | P107: 9 | R107: нет оценки | U107: нет оценки | W107: 8 | AK107: 10 | AP107: 9 | AW107: 8 | AZ107: 8 | BA107: 7 | BB107: 10 | BD107: 5 | BF107: 7 | BH107: 6 | BL107: 10 | BO107: 299 | BP107: 104 | BQ107: 13 | BR107: =IF(BQ107 > 0,BP107/BQ107,0) -> 8 | BS107: =MIN($F107:BN107) -> 5 | BT107: 96
A108: 97 | B108: Павлов Артем Игоревич | C108: 752789537 | D108: БЖУР143 | E108: Журналистика | G108: 8 | I108: 5 | M108: 4 | R108: нет оценки | U108: нет оценки | AC108: 4 | AE108: 4 | AH108: 4 | AI108: 4 | AK108: 10 | AP108: 8 | AS108: 4 | AV108: 6 | AY108: 4 | BA108: 6 | BB108: 10 | BC108: 5 | BI108: 6 | BK108: 4 | BL108: 10 | BO108: 291.06 | BP108: 106 | BQ108: 18 | BR108: =IF(BQ108 > 0,BP108/BQ108,0) -> 5.888888889 | BS108: =MIN($F108:BN108) -> 4 | BT108: 97
A109: 98 | B109: Чернова Анна Павловна | C109: 771516383 | D109: БЖУР143 | E109: Журналистика | F109: 7 | H109: нет оценки | P109: 4 | R109: нет оценки | U109: нет оценки | AA109: 5 | AK109: 10 | AO109: 8 | AP109: 6 | AW109: 6 | AZ109: 6 | BA109: 6 | BB109: 10 | BD109: 5 | BF109: 6 | BI109: 4 | BL109: 10 | BO109: 273.88 | BP109: 93 | BQ109: 14 | BR109: =IF(BQ109 > 0,BP109/BQ109,0) -> 6.642857143 | BS109: =MIN($F109:BN109) -> 4 | BT109: 98
A110: 99 | B110: Бойкова Виктория Владимировна | C110: 736526167 | D110: БЖУР141 | E110: Журналистика | G110: нет оценки | H110: нет оценки | K110: 4 | O110: 4 | R110: нет оценки | U110: нет оценки | AN110: 4 | AO110: 8 | AW110: 7 | AZ110: 7 | BA110: 7 | BD110: 5 | BF110: 7 | BI110: 5 | BL110: 10 | BO110: 250.08 | BP110: 68 | BQ110: 11 | BR110: =IF(BQ110 > 0,BP110/BQ110,0) -> 6.181818182 | BS110: =MIN($F110:BN110) -> 4 | BT110: 99

Sheet Данные (hidden)
A1: ID | B1: Оценка из 10 баллов | C1: Группа | D1: Студент | E1: Фамилия | F1: Имя | G1: Отчество | H1: Номер студенческого билета | I1: Строка учебного плана | J1: Кумулятивных кредитов за испытание | K1: Вид испытания | L1: Календарный период по плану | M1: Неявка | N1: В кумулятивный рейтинг | O1: Оценка зачет/назачет | P1: Является бюджетным | Q1: Учебный план | R1: Вид записи РУП | S1: Вид дисциплины по ИУП | T1: Номер Row
A2: 1 | B2: 2 | C2: 3 | D2: 4 | E2: 5 | F2: 6 | G2: 7 | H2: 8 | I2: 9 | J2: 10 | K2: 11 | L2: 12 | M2: 13 | N2: 14 | O2: 15 | P2: 16 | Q2: 17 | R2: 18 | S2: 19 | T2: 20
A3: 508206705 | B3: 9 | C3: БЖУР142 | D3: 498434150 | E3: Шубина | F3: Дарина | G3: Андреевна | H3: М141БЖУРН081 | I3: Безопасность жизнедеятельности | J3: 1 | K3: Экзамен | L3: 2014/2015 учебный год 1 модуль | N3: 9 | O3: 1 | P3: 1 | Q3: 475555736 | R3: 2098 | T3: Журналистика | U3: =MATCH(D3,Отчет!$C:$C,0) -> 85
A4: 508206965 | B4: 7 | C4: БЖУР142 | D4: 498434254 | E4: Вопиловская | F4: Мария | G4: Николаевна | H4: М141БЖУРН015 | I4: Безопасность жизнедеятельности | J4: 1 | K4: Экзамен | L4: 2014/2015 учебный год 1 модуль | N4: 7 | O4: 1 | P4: 1 | Q4: 475555736 | R4: 2098 | T4: Журналистика | U4: =MATCH(D4,Отчет!$C:$C,0) -> 75
A5: 508207029 | B5: 8 | C5: БЖУР143 | D5: 498434282 | E5: Ширяева | F5: Дарья | G5: Алексеевна | H5: М141БЖУРН079 | I5: Безопасность жизнедеятельности | J5: 1 | K5: Экзамен | L5: 2014/2015 учебный год 1 модуль | N5: 8 | O5: 1 | P5: 1 | Q5: 475555736 | R5: 2098 | T5: Журналистика | U5: =MATCH(D5,Отчет!$C:$C,0) -> 101
A6: 508203727 | B6: 9 | C6: БЖУР142 | D6: 498435054 | E6: Бочаров | F6: Иван | G6: Михайлович | H6: М141БЖУРН009 | I6: Безопасность жизнедеятельности | J6: 1 | K6: Экзамен | L6: 2014/2015 учебный год 1 модуль | N6: 9 | O6: 1 | P6: 1 | Q6: 475555736 | R6: 2098 | T6: Журналистика | U6: =MATCH(D6,Отчет!$C:$C,0) -> 54
A7: 508203796 | B7: 7 | C7: БЖУР142 | D7: 498435086 | E7: Синицына | F7: Анастасия | G7: Михайловна | H7: М141БЖУРН064 | I7: Безопасность жизнедеятельности | J7: 1 | K7: Экзамен | L7: 2014/2015 учебный год 1 модуль | N7: 7 | O7: 1 | P7: 1 | Q7: 475555736 | R7: 2098 | T7: Журналистика | U7: =MATCH(D7,Отчет!$C:$C,0) -> 68
A8: 508203862 | B8: 8 | C8: БЖУР143 | D8: 498435110 | E8: Фадеева | F8: Анастасия | G8: Германовна | H8: М141БЖУРН071 | I8: Безопасность жизнедеятельности | J8: 1 | K8: Экзамен | L8: 2014/2015 учебный год 1 модуль | N8: 8 | O8: 1 | P8: 1 | Q8: 475555736 | R8: 2098 | T8: Журналистика | U8: =MATCH(D8,Отчет!$C:$C,0) -> 102
A9: 508203926 | B9: 7 | C9: БЖУР143 | D9: 498435138 | E9: Копелевич | F9: Екатерина | G9: Ильинична | H9: М141БЖУРН041 | I9: Безопасность жизнедеятельности | J9: 1 | K9: Экзамен | L9: 2014/2015 учебный год 1 модуль | N9: 7 | O9: 1 | P9: 1 | Q9: 475555736 | R9: 2098 | T9: Журналистика | U9: =MATCH(D9,Отчет!$C:$C,0) -> 94
A10: 508204119 | B10: 9 | C10: БЖУР142 | D10: 498435244 | E10: Кондратов | F10: Антон | G10: Сергеевич | H10: М141БЖУРН040 | I10: Безопасность жизнедеятельности | J10: 1 | K10: Экзамен | L10: 2014/2015 учебный год 1 модуль | N10: 9 | O10: 1 | P10: 0 | Q10: 475555736 | R10: 2098 | T10: Журналистика | U10: =MATCH(D10,Отчет!$C:$C,0) -> 69
A11: 508204183 | B11: 8 | C11: БЖУР142 | D11: 498435271 | E11: Берняева | F11: Евгения | G11: Игоревна | H11: М141БЖУРН007 | I11: Безопасность жизнедеятельности | J11: 1 | K11: Экзамен | L11: 2014/2015 учебный год 1 модуль | N11: 8 | O11: 1 | P11: 0 | Q11: 475555736 | R11: 2098 | T11: Журналистика | U11: =MATCH(D11,Отчет!$C:$C,0) -> 76
A12: 508204247 | B12: 7 | C12: БЖУР141 | D12: 498435298 | E12: Авдонина | F12: Дарья | G12: Романовна | H12: М141БЖУРН001 | I12: Безопасность жизнедеятельности | J12: 1 | K12: Экзамен | L12: 2014/2015 учебный год 1 модуль | N12: 7 | O12: 1 | P12: 0 | Q12: 475555736 | R12: 2098 | T12: Журналистика | U12: =MATCH(D12,Отчет!$C:$C,0) -> 86
A13: 508204311 | B13: 9 | C13: БЖУР142 | D13: 498435329 | E13: Гимаева | F13: Майя | G13: Родионовна | H13: М141БЖУРН018 | I13: Безопасность жизнедеятельности | J13: 1 | K13: Экзамен | L13: 2014/2015 учебный год 1 модуль | N13: 9 | O13: 1 | P13: 0 | Q13: 475555736 | R13: 2098 | T13: Журналистика | U13: =MATCH(D13,Отчет!$C:$C,0) -> 58
A14: 508204375 | B14: 9 | C14: БЖУР142 | D14: 498435355 | E14: Сорокина | F14: Анастасия | G14: Андреевна | H14: М141БЖУРН066 | I14: Безопасность жизнедеятельности | J14: 1 | K14: Экзамен | L14: 2014/2015 учебный год 1 модуль | N14: 9 | O14: 1 | P14: 0 | Q14: 475555736 | R14: 2098 | T14: Журналистика | U14: =MATCH(D14,Отчет!$C:$C,0) -> 22
A15: 508204443 | B15: 7 | C15: БЖУР141 | D15: 498435377 | E15: Самиленко | F15: Софья | G15: Игоревна | H15: М141БЖУРН061 | I15: Безопасность жизнедеятельности | J15: 1 | K15: Экзамен | L15: 2014/2015 учебный год 1 модуль | N15: 7 | O15: 1 | P15: 0 | Q15: 475555736 | R15: 2098 | T15: Журналистика | U15: =MATCH(D15,Отчет!$C:$C,0) -> 60
A16: 508204571 | B16: 9 | C16: БЖУР142 | D16: 498435428 | E16: Тороп | F16: Анастасия | G16: Леонидовна | H16: М141БЖУРН070 | I16: Безопасность жизнедеятельности | J16: 1 | K16: Экзамен | L16: 2014/2015 учебный год 1 модуль | N16: 9 | O16: 1 | P16: 0 | Q16: 475555736 | R16: 2098 | T16: Журналистика | U16: =MATCH(D16,Отчет!$C:$C,0) -> 41
A17: 508204699 | B17: 8 | C17: БЖУР141 | D17: 498435480 | E17: Казарновский | F17: Павел | G17: Леонидович | H17: М141БЖУРН033 | I17: Безопасность жизнедеятельности | J17: 1 | K17: Экзамен | L17: 2014/2015 учебный год 1 модуль | N17: 8 | O17: 1 | P17: 0 | Q17: 475555736 | R17: 2098 | T17: Журналистика | U17: =MATCH(D17,Отчет!$C:$C,0) -> 23
A18: 508204763 | B18: 7 | C18: БЖУР142 | D18: 498435509 | E18: Аникина | F18: Мария | G18: Михайловна | H18: М141БЖУРН002 | I18: Безопасность жизнедеятельности | J18: 1 | K18: Экзамен | L18: 2014/2015 учебный год 1 модуль | N18: 7 | O18: 1 | P18: 0 | Q18: 475555736 | R18: 2098 | T18: Журналистика | U18: =MATCH(D18,Отчет!$C:$C,0) -> 62
A19: 508204828 | B19: 7 | C19: БЖУР142 | D19: 498435535 | E19: Васильчук | F19: Татьяна | G19: Алексеевна | H19: М141БЖУРН012 | I19: Безопасность жизнедеятельности | J19: 1 | K19: Экзамен | L19: 2014/2015 учебный год 1 модуль | N19: 7 | O19: 1 | P19: 0 | Q19: 475555736 | R19: 2098 | T19: Журналистика | U19: =MATCH(D19,Отчет!$C:$C,0) -> 97
A20: 508205025 | B20: 8 | C20: БЖУР142 | D20: 498435609 | E20: Манькова | F20: Елизавета | G20: Сергеевна | H20: М141БЖУРН049 | I20: Безопасность жизнедеятельности | J20: 1 | K20: Экзамен | L20: 2014/2015 учебный год 1 модуль | N20: 8 | O20: 1 | P20: 0 | Q20: 475555736 | R20: 2098 | T20: Журналистика | U20: =MATCH(D20,Отчет!$C:$C,0) -> 90
A21: 508205166 | B21: 9 | C21: БЖУР141 | D21: 498435661 | E21: Касьяненко | F21: Дарья | G21: Алексеевна | H21: М141БЖУРН036 | I21: Безопасность жизнедеятельности | J21: 1 | K21: Экзамен | L21: 2014/2015 учебный год 1 модуль | N21: 9 | O21: 1 | P21: 0 | Q21: 475555736 | R21: 2098 | T21: Журналистика | U21: =MATCH(D21,Отчет!$C:$C,0) -> 13
A22: 508205231 | B22: 8 | C22: БЖУР143 | D22: 498435688 | E22: Виткова | F22: Анастасия | G22: Андреевна | H22: М141БЖУРН013 | I22: Безопасность жизнедеятельности | J22: 1 | K22: Экзамен | L22: 2014/2015 учебный год 1 модуль | N22: 8 | O22: 1 | P22: 0 | Q22: 475555736 | R22: 2098 | T22: Журналистика | U22: =MATCH(D22,Отчет!$C:$C,0) -> 98
A23: 508205299 | B23: 8 | C23: БЖУР142 | D23: 498435714 | E23: Зыбина | F23: Мария | G23: Сергеевна | H23: М141БЖУРН029 | I23: Безопасность жизнедеятельности | J23: 1 | K23: Экзамен | L23: 2014/2015 учебный год 1 модуль | N23: 8 | O23: 1 | P23: 0 | Q23: 475555736 | R23: 2098 | T23: Журналистика | U23: =MATCH(D23,Отчет!$C:$C,0) -> 65
A24: 508205371 | B24: 7 | C24: БЖУР142 | D24: 498435740 | E24: Мещерская | F24: Мария | G24: Всеволодовна | H24: М141БЖУРН052 | I24: Безопасность жизнедеятельности | J24: 1 | K24: Экзамен | L24: 2014/2015 учебный год 1 модуль | N24: 7 | O24: 1 | P24: 0 | Q24: 475555736 | R24: 2098 | T24: Журналистика | U24: =MATCH(D24,Отчет!$C:$C,0) -> 63
A25: 508205443 | B25: 8 | C25: БЖУР141 | D25: 498435766 | E25: Кошеварова | F25: Елена | G25: Александровна | H25: М141БЖУРН042 | I25: Безопасность жизнедеятельности | J25: 1 | K25: Экзамен | L25: 2014/2015 учебный год 1 модуль | N25: 8 | O25: 1 | P25: 0 | Q25: 475555736 | R25: 2098 | T25: Журналистика | U25: =MATCH(D25,Отчет!$C:$C,0) -> 37
A26: 508205095 | B26: 8 | C26: БЖУР143 | D26: 498435635 | E26: Глозман | F26: Юлия | G26: Игоревна | H26: М141БЖУРН019 | I26: Безопасность жизнедеятельности | J26: 1 | K26: Экзамен | L26: 2014/2015 учебный год 1 модуль | N26: 8 | O26: 1 | P26: 0 | Q26: 475555736 | R26: 2098 | T26: Журналистика | U26: =MATCH(D26,Отчет!$C:$C,0) -> 66
A27: 508207969 | B27: 9 | C27: БЖУР143 | D27: 498434642 | E27: Лунина | F27: Елена | G27: Александровна | H27: М141БЖУРН047 | I27: Безопасность жизнедеятельности | J27: 1 | K27: Экзамен | L27: 2014/2015 учебный год 1 модуль | N27: 9 | O27: 1 | P27: 1 | Q27: 475555736 | R27: 2098 | T27: Журналистика | U27: =MATCH(D27,Отчет!$C:$C,0) -> 88
A28: 523012019 | B28: 8 | C28: БЖУР141 | D28: 509644468 | E28: Бережная | F28: Анна | G28: Андреевна | H28: М141БЖУРН083 | I28: Безопасность жизнедеятельности | J28: 1 | K28: Экзамен | L28: 2014/2015 учебный год 1 модуль | N28: 8 | O28: 1 | P28: 1 | Q28: 475555736 | R28: 2098 | T28: Журналистика | U28: =MATCH(D28,Отчет!$C:$C,0) -> 25
A29: 560426384 | B29: 5 | C29: БЖУР143 | D29: 509644493 | E29: Воронина | F29: Екатерина | G29: Андреевна | H29: М141БЖУРН084 | I29: Безопасность жизнедеятельности | J29: 1 | K29: Экзамен | L29: 2014/2015 учебный год 1 модуль | N29: 5 | O29: 1 | P29: 1 | Q29: 475555736 | R29: 2098 | T29: Журналистика | U29: =MATCH(D29,Отчет!$C:$C,0) -> 67
A30: 523011462 | B30: 7 | C30: БЖУР141 | D30: 509644517 | E30: Иванова | F30: Евгения | G30: Александровна | H30: М141БЖУРН085 | I30: Безопасность жизнедеятельности | J30: 1 | K30: Экзамен | L30: 2014/2015 учебный год 1 модуль | N30: 7 | O30: 1 | P30: 1 | Q30: 475555736 | R30: 2098 | T30: Журналистика | U30: =MATCH(D30,Отчет!$C:$C,0) -> 71
A31: 771507081 | B31: 7 | D31: 736567271 | E31: Кругляков | F31: Иван | G31: Евгеньевич | H31: М141БПЛТЛ041 | I31: Безопасность жизнедеятельности | J31: 1 | K31: Экзамен | L31: 2014/2015 учебный год 1 модуль | N31: 7 | O31: 1 | P31: 0 | Q31: 475555736 | R31: 2098 | T31: Журналистика | U31: =MATCH(D31,Отчет!$C:$C,0) -> 107
A32: 771510822 | B32: 8 | C32: БЖУР141 | D32: 731597562 | E32: Галактионова | F32: Маргарита | G32: Александровна | H32: М141БФИЛЛ017 | I32: Безопасность жизнедеятельности | J32: 1 | K32: Экзамен | L32: 2014/2015 учебный год 1 модуль | N32: 8 | O32: 1 | P32: 0 | Q32: 475555736 | R32: 2098 | T32: Журналистика | U32: =MATCH(D32,Отчет!$C:$C,0) -> 104
A33: 771519440 | B33: 7 | C33: БЖУР143 | D33: 771516383 | E33: Чернова | F33: Анна | G33: Павловна | H33: М141БФИЛЛ072 | I33: Безопасность жизнедеятельности | J33: 1 | K33: Экзамен | L33: 2014/2015 учебный год 1 модуль | N33: 7 | O33: 1 | P33: 0 | Q33: 475555736 | R33: 2098 | T33: Журналистика | U33: =MATCH(D33,Отчет!$C:$C,0) -> 109
A34: 574983864 | B34: 9 | C34: БЖУР143 | D34: 574873939 | E34: Тальчук | F34: Анастасия | G34: Вадимовна | H34: М141БЖУРН094 | I34: Безопасность жизнедеятельности | J34: 1 | K34: Экзамен | L34: 2014/2015 учебный год 1 модуль | N34: 9 | O34: 1 | P34: 1 | Q34: 475555736 | R34: 2098 | T34: Журналистика | U34: =MATCH(D34,Отчет!$C:$C,0) -> 70
A35: 508208187 | B35: 8 | C35: БЖУР143 | D35: 498434730 | E35: Мигунова | F35: Марья | G35: Олеговна | H35: М141БЖУРН053 | I35: Безопасность жизнедеятельности | J35: 1 | K35: Экзамен | L35: 2014/2015 учебный год 1 модуль | N35: 8 | O35: 1 | P35: 1 | Q35: 475555736 | R35: 2098 | T35: Журналистика | U35: =MATCH(D35,Отчет!$C:$C,0) -> 44
A36: 508208258 | B36: 8 | C36: БЖУР141 | D36: 498434758 | E36: Кушнир | F36: Дарья | G36: Андреевна | H36: М141БЖУРН045 | I36: Безопасность жизнедеятельности | J36: 1 | K36: Экзамен | L36: 2014/2015 учебный год 1 модуль | N36: 8 | O36: 1 | P36: 1 | Q36: 475555736 | R36: 2098 | T36: Журналистика | U36: =MATCH(D36,Отчет!$C:$C,0) -> 33
A37: 508208467 | B37: 9 | C37: БЖУР142 | D37: 498434854 | E37: Калоева | F37: Лидия | G37: Алановна | H37: М141БЖУРН034 | I37: Безопасность жизнедеятельности | J37: 1 | K37: Экзамен | L37: 2014/2015 учебный год 1 модуль | N37: 9 | O37: 1 | P37: 1 | Q37: 475555736 | R37: 2098 | T37: Журналистика | U37: =MATCH(D37,Отчет!$C:$C,0) -> 40
A38: 508208537 | B38: 8 | C38: БЖУР141 | D38: 498434882 | E38: Клыгина | F38: Маргарита | G38: Александровна | H38: М141БЖУРН039 | I38: Безопасность жизнедеятельности | J38: 1 | K38: Экзамен | L38: 2014/2015 учебный год 1 модуль | N38: 8 | O38: 1 | P38: 1 | Q38: 475555736 | R38: 2098 | T38: Журналистика | U38: =MATCH(D38,Отчет!$C:$C,0) -> 83
A39: 508208609 | B39: 9 | C39: БЖУР141 | D39: 498434914 | E39: Тимошенкова | F39: Мария | G39: Александровна | H39: М141БЖУРН069 | I39: Безопасность жизнедеятельности | J39: 1 | K39: Экзамен | L39: 2014/2015 учебный год 1 модуль | N39: 9 | O39: 1 | P39: 1 | Q39: 475555736 | R39: 2098 | T39: Журналистика | U39: =MATCH(D39,Отчет!$C:$C,0) -> 19
A40: 508208676 | B40: 9 | C40: БЖУР142 | D40: 498434946 | E40: Шарипова | F40: Лилия | G40: Витальевна | H40: М141БЖУРН078 | I40: Безопасность жизнедеятельности | J40: 1 | K40: Экзамен | L40: 2014/2015 учебный год 1 модуль | N40: 9 | O40: 1 | P40: 1 | Q40: 475555736 | R40: 2098 | T40: Журналистика | U40: =MATCH(D40,Отчет!$C:$C,0) -> 80
A41: 508208740 | B41: 9 | C41: БЖУР142 | D41: 498434970 | E41: Красильников | F41: Иван | G41: Сергеевич | H41: М141БЖУРН043 | I41: Безопасность жизнедеятельности | J41: 1 | K41: Экзамен | L41: 2014/2015 учебный год 1 модуль | N41: 9 | O41: 1 | P41: 1 | Q41: 475555736 | R41: 2098 | T41: Журналистика | U41: =MATCH(D41,Отчет!$C:$C,0) -> 48
A42: 508208805 | B42: 8 | C42: БЖУР143 | D42: 498434998 | E42: Ким | F42: Анна | G42: Викторовна | H42: М141БЖУРН038 | I42: Безопасность жизнедеятельности | J42: 1 | K42: Экзамен | L42: 2014/2015 учебный год 1 модуль | N42: 8 | O42: 1 | P42: 1 | Q42: 475555736 | R42: 2098 | T42: Журналистика | U42: =MATCH(D42,Отчет!$C:$C,0) -> 99
A43: 508208869 | B43: 8 | C43: БЖУР141 | D43: 498435026 | E43: Гандзюк | F43: Оксана | G43: Николаевна | H43: М141БЖУРН017 | I43: Безопасность жизнедеятельности | J43: 1 | K43: Экзамен | L43: 2014/2015 учебный год 1 модуль | N43: 8 | O43: 1 | P43: 1 | Q43: 475555736 | R43: 2098 | T43: Журналистика | U43: =MATCH(D43,Отчет!$C:$C,0) -> 59
A44: 508209002 | B44: 9 | C44: БЖУР142 | D44: 499631216 | E44: Гулина | F44: Дарья | G44: Николаевна | H44: М141БЖУРН022 | I44: Безопасность жизнедеятельности | J44: 1 | K44: Экзамен | L44: 2014/2015 учебный год 1 модуль | N44: 9 | O44: 1 | P44: 0 | Q44: 475555736 | R44: 2098 | T44: Журналистика | U44: =MATCH(D44,Отчет!$C:$C,0) -> 16
A45: 508209073 | B45: 6 | C45: БЖУР141 | D45: 499631243 | E45: Глухова | F45: Полина | G45: Владиславовна | H45: М141БЖУРН020 | I45: Безопасность жизнедеятельности | J45: 1 | K45: Экзамен | L45: 2014/2015 учебный год 1 модуль | N45: 6 | O45: 1 | P45: 0 | Q45: 475555736 | R45: 2098 | T45: Журналистика | U45: =MATCH(D45,Отчет!$C:$C,0) -> 92
A46: 508209145 | B46: 8 | C46: БЖУР143 | D46: 499631271 | E46: Сурмина | F46: Мария | G46: Дмитриевна | H46: М141БЖУРН068 | I46: Безопасность жизнедеятельности | J46: 1 | K46: Экзамен | L46: 2014/2015 учебный год 1 модуль | N46: 8 | O46: 1 | P46: 0 | Q46: 475555736 | R46: 2098 | T46: Журналистика | U46: =MATCH(D46,Отчет!$C:$C,0) -> 84
A47: 523013671 | B47: 9 | C47: БЖУР143 | D47: 515640266 | E47: Мащенко | F47: Владислава | G47: Владимировна | H47: М141БЖУРН087 | I47: Безопасность жизнедеятельности | J47: 1 | K47: Экзамен | L47: 2014/2015 учебный год 1 модуль | N47: 9 | O47: 1 | P47: 1 | Q47: 475555736 | R47: 2098 | T47: Журналистика | U47: =MATCH(D47,Отчет!$C:$C,0) -> 12
A48: 523013119 | B48: 6 | C48: БЖУР142 | D48: 515640294 | E48: Мельникова | F48: Ксения | G48: Витальевна | H48: М141БЖУРН086 | I48: Безопасность жизнедеятельности | J48: 1 | K48: Экзамен | L48: 2014/2015 учебный год 1 модуль | N48: 6 | O48: 1 | P48: 1 | Q48: 475555736 | R48: 2098 | T48: Журналистика | U48: =MATCH(D48,Отчет!$C:$C,0) -> 28
A49: 560426081 | B49: 8 | C49: БЖУР142 | D49: 524367516 | E49: Ишниязова | F49: Анастасия | G49: Александровна | H49: М141БЖУРН089 | I49: Безопасность жизнедеятельности | J49: 1 | K49: Экзамен | L49: 2014/2015 учебный год 1 модуль | N49: 8 | O49: 1 | P49: 1 | Q49: 475555736 | R49: 2098 | T49: Журналистика | U49: =MATCH(D49,Отчет!$C:$C,0) -> 87
A50: 560425909 | B50: 4 | C50: БЖУР141 | D50: 524367546 | E50: Ходневич | F50: Татьяна | G50: Сергеевна | H50: М141БЖУРН090 | I50: Безопасность жизнедеятельности | J50: 1 | K50: Экзамен | L50: 2014/2015 учебный год 1 модуль | N50: 4 | O50: 1 | P50: 1 | Q50: 475555736 | R50: 2098 | T50: Журналистика | U50: =MATCH(D50,Отчет!$C:$C,0) -> 79
A51: 557681486 | B51: 8 | C51: БЖУР143 | D51: 557352459 | E51: Гаргарица | F51: Елизавета | G51: - | H51: М141БЖУРН093 | I51: Безопасность жизнедеятельности | J51: 1 | K51: Экзамен | L51: 2014/2015 учебный год 1 модуль | N51: 8 | O51: 1 | P51: 1 | Q51: 475555736 | R51: 2098 | T51: Журналистика | U51: =MATCH(D51,Отчет!$C:$C,0) -> 96
A52: 557681894 | B52: 7 | C52: БЖУР141 | D52: 541015553 | E52: Дудкина | F52: Наталья | G52: - | H52: М141БЖУРН091 | I52: Безопасность жизнедеятельности | J52: 1 | K52: Экзамен | L52: 2014/2015 учебный год 1 модуль | N52: 7 | O52: 1 | P52: 1 | Q52: 475555736 | R52: 2098 | T52: Журналистика | U52: =MATCH(D52,Отчет!$C:$C,0) -> 61
A53: 557682324 | B53: 8 | C53: БЖУР141 | D53: 542391073 | E53: Порошина | F53: Кристина | G53: Вадимовна | H53: М141БЖУРН092 | I53: Безопасность жизнедеятельности | J53: 1 | K53: Экзамен | L53: 2014/2015 учебный год 1 модуль | N53: 8 | O53: 1 | P53: 1 | Q53: 475555736 | R53: 2098 | T53: Журналистика | U53: =MATCH(D53,Отчет!$C:$C,0) -> 93
A54: 523013183 | B54: 9 | C54: БЖУР142 | D54: 515640238 | E54: Клименко | F54: Анастасия | G54: Сергеевна | H54: М141БЖУРН088 | I54: Безопасность жизнедеятельности | J54: 1 | K54: Экзамен | L54: 2014/2015 учебный год 1 модуль | N54: 9 | O54: 1 | P54: 1 | Q54: 475555736 | R54: 2098 | T54: Журналистика | U54: =MATCH(D54,Отчет!$C:$C,0) -> 35
A55: 508206039 | B55: 7 | C55: БЖУР141 | D55: 498436010 | E55: Вартумян | F55: Елена | G55: Сергеевна | H55: М141БЖУРН011 | I55: Безопасность жизнедеятельности | J55: 1 | K55: Экзамен | L55: 2014/2015 учебный год 1 модуль | N55: 7 | O55: 1 | P55: 0 | Q55: 475555736 | R55: 2098 | T55: Журналистика | U55: =MATCH(D55,Отчет!$C:$C,0) -> 45
A56: 508207098 | B56: 9 | C56: БЖУР143 | D56: 498434310 | E56: Древова | F56: Юлия | G56: Николаевна | H56: М141БЖУРН024 | I56: Безопасность жизнедеятельности | J56: 1 | K56: Экзамен | L56: 2014/2015 учебный год 1 модуль | N56: 9 | O56: 1 | P56: 1 | Q56: 475555736 | R56: 2098 | T56: Журналистика | U56: =MATCH(D56,Отчет!$C:$C,0) -> 14
A57: 508207167 | B57: 9 | C57: БЖУР143 | D57: 498434334 | E57: Иванкина | F57: Наталья | G57: Владиславовна | H57: М141БЖУРН030 | I57: Безопасность жизнедеятельности | J57: 1 | K57: Экзамен | L57: 2014/2015 учебный год 1 модуль | N57: 9 | O57: 1 | P57: 1 | Q57: 475555736 | R57: 2098 | T57: Журналистика | U57: =MATCH(D57,Отчет!$C:$C,0) -> 56
A58: 508207244 | B58: 7 | C58: БЖУР141 | D58: 498434358 | E58: Николаева | F58: Лада | G58: Сергеевна | H58: М141БЖУРН057 | I58: Безопасность жизнедеятельности | J58: 1 | K58: Экзамен | L58: 2014/2015 учебный год 1 модуль | N58: 7 | O58: 1 | P58: 1 | Q58: 475555736 | R58: 2098 | T58: Журналистика | U58: =MATCH(D58,Отчет!$C:$C,0) -> 31
A59: 508207389 | B59: 9 | C59: БЖУР142 | D59: 498434418 | E59: Мироненко | F59: Надежда | G59: Евгеньевна | H59: М141БЖУРН055 | I59: Безопасность жизнедеятельности | J59: 1 | K59: Экзамен | L59: 2014/2015 учебный год 1 модуль | N59: 9 | O59: 1 | P59: 1 | Q59: 475555736 | R59: 2098 | T59: Журналистика | U59: =MATCH(D59,Отчет!$C:$C,0) -> 81
A60: 508207461 | B60: 7 | C60: БЖУР141 | D60: 498434450 | E60: Лучина | F60: Анна | G60: Александровна | H60: М141БЖУРН048 | I60: Безопасность жизнедеятельности | J60: 1 | K60: Экзамен | L60: 2014/2015 учебный год 1 модуль | N60: 7 | O60: 1 | P60: 1 | Q60: 475555736 | R60: 2098 | T60: Журналистика | U60: =MATCH(D60,Отчет!$C:$C,0) -> 36
A61: 508207530 | B61: 8 | C61: БЖУР143 | D61: 498434478 | E61: Финутикова | F61: Дарья | G61: Николаевна | H61: М141БЖУРН073 | I61: Безопасность жизнедеятельности | J61: 1 | K61: Экзамен | L61: 2014/2015 учебный год 1 модуль | N61: 8 | O61: 1 | P61: 1 | Q61: 475555736 | R61: 2098 | T61: Журналистика | U61: =MATCH(D61,Отчет!$C:$C,0) -> 29
A62: 508207597 | B62: 8 | C62: БЖУР141 | D62: 498434506 | E62: Федоренко | F62: Наталия | G62: Олеговна | H62: М141БЖУРН072 | I62: Безопасность жизнедеятельности | J62: 1 | K62: Экзамен | L62: 2014/2015 учебный год 1 модуль | N62: 8 | O62: 1 | P62: 1 | Q62: 475555736 | R62: 2098 | T62: Журналистика | U62: =MATCH(D62,Отчет!$C:$C,0) -> 55
A63: 508207665 | B63: 9 | C63: БЖУР143 | D63: 498434538 | E63: Смирнова | F63: Владислава | G63: Константиновна | H63: М141БЖУРН065 | I63: Безопасность жизнедеятельности | J63: 1 | K63: Экзамен | L63: 2014/2015 учебный год 1 модуль | N63: 9 | O63: 1 | P63: 1 | Q63: 475555736 | R63: 2098 | T63: Журналистика | U63: =MATCH(D63,Отчет!$C:$C,0) -> 15
A64: 508204958 | B64: 7 | C64: БЖУР142 | D64: 498435583 | E64: Каткова | F64: Мария | G64: Игоревна | H64: М141БЖУРН037 | I64: Безопасность жизнедеятельности | J64: 1 | K64: Экзамен | L64: 2014/2015 учебный год 1 модуль | N64: 7 | O64: 1 | P64: 0 | Q64: 475555736 | R64: 2098 | T64: Журналистика | U64: =MATCH(D64,Отчет!$C:$C,0) -> 89
A65: 508206298 | B65: 9 | C65: БЖУР142 | D65: 498436133 | E65: Лаптев | F65: Андрей | G65: Вячеславович | H65: М141БЖУРН046 | I65: Безопасность жизнедеятельности | J65: 1 | K65: Экзамен | L65: 2014/2015 учебный год 1 модуль | N65: 9 | O65: 1 | P65: 1 | Q65: 475555736 | R65: 2098 | T65: Журналистика | U65: =MATCH(D65,Отчет!$C:$C,0) -> 20
A66: 508204635 | B66: 9 | C66: БЖУР143 | D66: 498435454 | E66: Михайлиди | F66: Александра | G66: Христофоровна | H66: М141БЖУРН056 | I66: Безопасность жизнедеятельности | J66: 1 | K66: Экзамен | L66: 2014/2015 учебный год 1 модуль | N66: 9 | O66: 1 | P66: 0 | Q66: 475555736 | R66: 2098 | T66: Журналистика | U66: =MATCH(D66,Отчет!$C:$C,0) -> 27
A67: 508205710 | B67: 8 | C67: БЖУР141 | D67: 498435875 | E67: Сенчугова | F67: Екатерина | G67: Игоревна | H67: М141БЖУРН063 | I67: Безопасность жизнедеятельности | J67: 1 | K67: Экзамен | L67: 2014/2015 учебный год 1 модуль | N67: 8 | O67: 1 | P67: 0 | Q67: 475555736 | R67: 2098 | T67: Журналистика | U67: =MATCH(D67,Отчет!$C:$C,0) -> 46
A68: 508208328 | B68: 9 | C68: БЖУР143 | D68: 498434786 | E68: Спирин | F68: Максим | G68: Геннадьевич | H68: М141БЖУРН067 | I68: Безопасность жизнедеятельности | J68: 1 | K68: Экзамен | L68: 2014/2015 учебный год 1 модуль | N68: 9 | O68: 1 | P68: 1 | Q68: 475555736 | R68: 2098 | T68: Журналистика | U68: =MATCH(D68,Отчет!$C:$C,0) -> 21
A69: 508204054 | B69: 9 | C69: БЖУР142 | D69: 498435190 | E69: Фисенко | F69: Екатерина | G69: Антоновна | H69: М141БЖУРН074 | I69: Безопасность жизнедеятельности | J69: 1 | K69: Экзамен | L69: 2014/2015 учебный год 1 модуль | N69: 9 | O69: 1 | P69: 1 | Q69: 475555736 | R69: 2098 | T69: Журналистика | U69: =MATCH(D69,Отчет!$C:$C,0) -> 50
A70: 508208398 | B70: 9 | C70: БЖУР143 | D70: 498434826 | E70: Шакиров | F70: Шамиль | G70: Маратович | H70: М141БЖУРН077 | I70: Безопасность жизнедеятельности | J70: 1 | K70: Экзамен | L70: 2014/2015 учебный год 1 модуль | N70: 9 | O70: 1 | P70: 1 | Q70: 475555736 | R70: 2098 | T70: Журналистика | U70: =MATCH(D70,Отчет!$C:$C,0) -> 74
A71: 508207817 | B71: 8 | C71: БЖУР142 | D71: 498434590 | E71: Шаботич | F71: Амела | G71: - | H71: М141БЖУРН076 | I71: Безопасность жизнедеятельности | J71: 1 | K71: Экзамен | L71: 2014/2015 учебный год 1 модуль | N71: 8 | O71: 1 | P71: 1 | Q71: 475555736 | R71: 2098 | T71: Журналистика | U71: =MATCH(D71,Отчет!$C:$C,0) -> 64
A72: 508208045 | B72: 9 | C72: БЖУР143 | D72: 498434674 | E72: Карабанов | F72: Андрей | G72: Павлович | H72: М141БЖУРН035 | I72: Безопасность жизнедеятельности | J72: 1 | K72: Экзамен | L72: 2014/2015 учебный год 1 модуль | N72: 9 | O72: 1 | P72: 1 | Q72: 475555736 | R72: 2098 | T72: Журналистика | U72: =MATCH(D72,Отчет!$C:$C,0) -> 72
A73: 508205509 | B73: 8 | C73: БЖУР142 | D73: 498435792 | E73: Емельянова | F73: Лидия | G73: Станиславовна | H73: М141БЖУРН026 | I73: Безопасность жизнедеятельности | J73: 1 | K73: Экзамен | L73: 2014/2015 учебный год 1 модуль | N73: 8 | O73: 1 | P73: 0 | Q73: 475555736 | R73: 2098 | T73: Журналистика | U73: =MATCH(D73,Отчет!$C:$C,0) -> 52
A74: 508205578 | B74: 9 | C74: БЖУР143 | D74: 498435818 | E74: Аюпова | F74: Арина | G74: Альбертовна | H74: М141БЖУРН003 | I74: Безопасность жизнедеятельности | J74: 1 | K74: Экзамен | L74: 2014/2015 учебный год 1 модуль | N74: 9 | O74: 1 | P74: 0 | Q74: 475555736 | R74: 2098 | T74: Журналистика | U74: =MATCH(D74,Отчет!$C:$C,0) -> 17
A75: 508205642 | B75: 8 | C75: БЖУР141 | D75: 498435845 | E75: Барсукова | F75: Анна | G75: Дмитриевна | H75: М141БЖУРН004 | I75: Безопасность жизнедеятельности | J75: 1 | K75: Экзамен | L75: 2014/2015 учебный год 1 модуль | N75: 8 | O75: 1 | P75: 0 | Q75: 475555736 | R75: 2098 | T75: Журналистика | U75: =MATCH(D75,Отчет!$C:$C,0) -> 49
A76: 508205838 | B76: 7 | C76: БЖУР141 | D76: 498435929 | E76: Шлюпкина | F76: Даяна | G76: Олеговна | H76: М141БЖУРН080 | I76: Безопасность жизнедеятельности | J76: 1 | K76: Экзамен | L76: 2014/2015 учебный год 1 модуль | N76: 7 | O76: 1 | P76: 0 | Q76: 475555736 | R76: 2098 | T76: Журналистика | U76: =MATCH(D76,Отчет!$C:$C,0) -> 78
A77: 508205904 | B77: 9 | C77: БЖУР143 | D77: 498435955 | E77: Губин | F77: Тимофей | G77: Сергеевич | H77: М141БЖУРН021 | I77: Безопасность жизнедеятельности | J77: 1 | K77: Экзамен | L77: 2014/2015 учебный год 1 модуль | N77: 9 | O77: 1 | P77: 0 | Q77: 475555736 | R77: 2098 | T77: Журналистика | U77: =MATCH(D77,Отчет!$C:$C,0) -> 100
A78: 508205974 | B78: 8 | C78: БЖУР141 | D78: 498435979 | E78: Волкова | F78: Мария | G78: Владимировна | H78: М141БЖУРН014 | I78: Безопасность жизнедеятельности | J78: 1 | K78: Экзамен | L78: 2014/2015 учебный год 1 модуль | N78: 8 | O78: 1 | P78: 0 | Q78: 475555736 | R78: 2098 | T78: Журналистика | U78: =MATCH(D78,Отчет!$C:$C,0) -> 42
A79: 508206105 | B79: 9 | C79: БЖУР141 | D79: 498436040 | E79: Фролова | F79: Виктория | G79: Александровна | H79: М141БЖУРН075 | I79: Безопасность жизнедеятельности | J79: 1 | K79: Экзамен | L79: 2014/2015 учебный год 1 модуль | N79: 9 | O79: 1 | P79: 0 | Q79: 475555736 | R79: 2098 | T79: Журналистика | U79: =MATCH(D79,Отчет!$C:$C,0) -> 57
A80: 508206169 | B80: 9 | C80: БЖУР143 | D80: 498436063 | E80: Сапонова | F80: Анастасия | G80: Владимировна | H80: М141БЖУРН062 | I80: Безопасность жизнедеятельности | J80: 1 | K80: Экзамен | L80: 2014/2015 учебный год 1 модуль | N80: 9 | O80: 1 | P80: 0 | Q80: 475555736 | R80: 2098 | T80: Журналистика | U80: =MATCH(D80,Отчет!$C:$C,0) -> 24
A81: 508206233 | B81: 9 | C81: БЖУР143 | D81: 498436108 | E81: Шульга | F81: Арина | G81: Степановна | H81: М141БЖУРН082 | I81: Безопасность жизнедеятельности | J81: 1 | K81: Экзамен | L81: 2014/2015 учебный год 1 модуль | N81: 9 | O81: 1 | P81: 1 | Q81: 475555736 | R81: 2098 | T81: Журналистика | U81: =MATCH(D81,Отчет!$C:$C,0) -> 43
A82: 508206376 | B82: 8 | C82: БЖУР142 | D82: 498436157 | E82: Пендина | F82: Полина | G82: Владимировна | H82: М141БЖУРН058 | I82: Безопасность жизнедеятельности | J82: 1 | K82: Экзамен | L82: 2014/2015 учебный год 1 модуль | N82: 8 | O82: 1 | P82: 1 | Q82: 475555736 | R82: 2098 | T82: Журналистика | U82: =MATCH(D82,Отчет!$C:$C,0) -> 53
A83: 508206442 | B83: 9 | C83: БЖУР143 | D83: 498436181 | E83: Крылова | F83: Софья | G83: Андреевна | H83: М141БЖУРН044 | I83: Безопасность жизнедеятельности | J83: 1 | K83: Экзамен | L83: 2014/2015 учебный год 1 модуль | N83: 9 | O83: 1 | P83: 1 | Q83: 475555736 | R83: 2098 | T83: Журналистика | U83: =MATCH(D83,Отчет!$C:$C,0) -> 91
A84: 508206510 | B84: 8 | C84: БЖУР143 | D84: 498436205 | E84: Белюга | F84: Татьяна | G84: Сергеевна | H84: М141БЖУРН006 | I84: Безопасность жизнедеятельности | J84: 1 | K84: Экзамен | L84: 2014/2015 учебный год 1 модуль | N84: 8 | O84: 1 | P84: 1 | Q84: 475555736 | R84: 2098 | T84: Журналистика | U84: =MATCH(D84,Отчет!$C:$C,0) -> 18
A85: 508206577 | B85: 9 | C85: БЖУР143 | D85: 498436229 | E85: Маслаков | F85: Денис | G85: Андреевич | H85: М141БЖУРН050 | I85: Безопасность жизнедеятельности | J85: 1 | K85: Экзамен | L85: 2014/2015 учебный год 1 модуль | N85: 9 | O85: 1 | P85: 1 | Q85: 475555736 | R85: 2098 | T85: Журналистика | U85: =MATCH(D85,Отчет!$C:$C,0) -> 26
A86: 508206641 | B86: 7 | C86: БЖУР143 | D86: 498436257 | E86: Казаков | F86: Илья | G86: Викторович | H86: М141БЖУРН032 | I86: Безопасность жизнедеятельности | J86: 1 | K86: Экзамен | L86: 2014/2015 учебный год 1 модуль | N86: 7 | O86: 1 | P86: 1 | Q86: 475555736 | R86: 2098 | T86: Журналистика | U86: =MATCH(D86,Отчет!$C:$C,0) -> 38
A87: 508207320 | B87: 8 | C87: БЖУР142 | D87: 498434390 | E87: Ворошилов | F87: Николай | G87: Михайлович | H87: М141БЖУРН016 | I87: Безопасность жизнедеятельности | J87: 1 | K87: Экзамен | L87: 2014/2015 учебный год 1 модуль | N87: 8 | O87: 1 | P87: 1 | Q87: 475555736 | R87: 2098 | T87: Журналистика | U87: =MATCH(D87,Отчет!$C:$C,0) -> 32
A88: 508205774 | B88: 9 | C88: БЖУР143 | D88: 498435902 | E88: Житпелева | F88: Ольга | G88: Игоревна | H88: М141БЖУРН027 | I88: Безопасность жизнедеятельности | J88: 1 | K88: Экзамен | L88: 2014/2015 учебный год 1 модуль | N88: 9 | O88: 1 | P88: 0 | Q88: 475555736 | R88: 2098 | T88: Журналистика | U88: =MATCH(D88,Отчет!$C:$C,0) -> 77
A89: 508208935 | B89: 8 | C89: БЖУР141 | D89: 499631190 | E89: Журавлёв | F89: Илья | G89: Владимирович | H89: М141БЖУРН028 | I89: Безопасность жизнедеятельности | J89: 1 | K89: Экзамен | L89: 2014/2015 учебный год 1 модуль | N89: 8 | O89: 1 | P89: 0 | Q89: 475555736 | R89: 2098 | T89: Журналистика | U89: =MATCH(D89,Отчет!$C:$C,0) -> 47
A90: 508206091 | B90: 10 | C90: БЖУР141 | D90: 498436010 | E90: Вартумян | F90: Елена | G90: Сергеевна | H90: М141БЖУРН011 | I90: Информационные технологии подготовки печатных и электронных СМИ | J90: 3 | K90: Экзамен | L90: 2014/2015 учебный год 1 модуль | N90: 30 | O90: 1 | P90: 0 | Q90: 475555736 | R90: 2098 | T90: Журналистика | U90: =MATCH(D90,Отчет!$C:$C,0) -> 45
A91: 508205152 | B91: 10 | C91: БЖУР143 | D91: 498435635 | E91: Глозман | F91: Юлия | G91: Игоревна | H91: М141БЖУРН019 | I91: Информационные технологии подготовки печатных и электронных СМИ | J91: 3 | K91: Экзамен | L91: 2014/2015 учебный год 1 модуль | N91: 30 | O91: 1 | P91: 0 | Q91: 475555736 | R91: 2098 | T91: Журналистика | U91: =MATCH(D91,Отчет!$C:$C,0) -> 66
A92: 508208030 | B92: 10 | C92: БЖУР143 | D92: 498434642 | E92: Лунина | F92: Елена | G92: Александровна | H92: М141БЖУРН047 | I92: Информационные технологии подготовки печатных и электронных СМИ | J92: 3 | K92: Экзамен | L92: 2014/2015 учебный год 1 модуль | N92: 30 | O92: 1 | P92: 1 | Q92: 475555736 | R92: 2098 | T92: Журналистика | U92: =MATCH(D92,Отчет!$C:$C,0) -> 88
A93: 523012086 | B93: 10 | C93: БЖУР141 | D93: 509644468 | E93: Бережная | F93: Анна | G93: Андреевна | H93: М141БЖУРН083 | I93: Информационные технологии подготовки печатных и электронных СМИ | J93: 3 | K93: Экзамен | L93: 2014/2015 учебный год 1 модуль | N93: 30 | O93: 1 | P93: 1 | Q93: 475555736 | R93: 2098 | T93: Журналистика | U93: =MATCH(D93,Отчет!$C:$C,0) -> 25
A94: 560426436 | B94: 10 | C94: БЖУР143 | D94: 509644493 | E94: Воронина | F94: Екатерина | G94: Андреевна | H94: М141БЖУРН084 | I94: Информационные технологии подготовки печатных и электронных СМИ | J94: 3 | K94: Экзамен | L94: 2014/2015 учебный год 1 модуль | N94: 30 | O94: 1 | P94: 1 | Q94: 475555736 | R94: 2098 | T94: Журналистика | U94: =MATCH(D94,Отчет!$C:$C,0) -> 67
A95: 523011541 | B95: 10 | C95: БЖУР141 | D95: 509644517 | E95: Иванова | F95: Евгения | G95: Александровна | H95: М141БЖУРН085 | I95: Информационные технологии подготовки печатных и электронных СМИ | J95: 3 | K95: Экзамен | L95: 2014/2015 учебный год 1 модуль | N95: 30 | O95: 1 | P95: 1 | Q95: 475555736 | R95: 2098 | T95: Журналистика | U95: =MATCH(D95,Отчет!$C:$C,0) -> 71
A96: 1132497527 | C96: БЖУР141 | D96: 736526167 | E96: Бойкова | F96: Виктория | G96: Владимировна | H96: М151БЖУРН001 | I96: Информационные технологии подготовки печатных и электронных СМИ | J96: 3 | K96: Экзамен | L96: 2014/2015 учебный год 1 модуль | N96: 0 | P96: 0 | Q96: 475555736 | R96: 2098 | T96: Журналистика | U96: =MATCH(D96,Отчет!$C:$C,0) -> 110
A97: 1164721070 | C97: БЖУР141 | D97: 612385826 | E97: Донских | F97: Дмитрий | G97: Сергеевич | H97: 231340007 | I97: Информационные технологии подготовки печатных и электронных СМИ | J97: 3 | K97: Экзамен | L97: 2014/2015 учебный год 1 модуль | N97: 0 | P97: 0 | Q97: 475555736 | R97: 2098 | T97: Журналистика | U97: =MATCH(D97,Отчет!$C:$C,0) -> 106
A98: 1164761201 | C98: БЖУР142 | D98: 785151717 | E98: Курбатова | F98: Ксения | G98: Алексеевна | H98: М131БФИЛЛ002 | I98: Информационные технологии подготовки печатных и электронных СМИ | J98: 3 | K98: Экзамен | L98: 2014/2015 учебный год 1 модуль | N98: 0 | P98: 0 | Q98: 475555736 | R98: 2098 | T98: Журналистика | U98: =MATCH(D98,Отчет!$C:$C,0) -> 105
A99: 845858906 | B99: 8 | C99: БЖУР143 | D99: 752789537 | E99: Павлов | F99: Артем | G99: Игоревич | H99: 121219198 | I99: Информационные технологии подготовки печатных и электронных СМИ | J99: 3 | K99: Экзамен | L99: 2014/2015 учебный год 1 модуль | N99: 24 | O99: 1 | P99: 0 | Q99: 475555736 | R99: 2098 | T99: Журналистика | U99: =MATCH(D99,Отчет!$C:$C,0) -> 108
A100: 574983914 | B100: 10 | C100: БЖУР143 | D100: 574873939 | E100: Тальчук | F100: Анастасия | G100: Вадимовна | H100: М141БЖУРН094 | I100: Информационные технологии подготовки печатных и электронных СМИ | J100: 3 | K100: Экзамен | L100: 2014/2015 учебный год 1 модуль | N100: 30 | O100: 1 | P100: 1 | Q100: 475555736 | R100: 2098 | T100: Журналистика | U100: =MATCH(D100,Отчет!$C:$C,0) -> 70
A101: 508208243 | B101: 10 | C101: БЖУР143 | D101: 498434730 | E101: Мигунова | F101: Марья | G101: Олеговна | H101: М141БЖУРН053 | I101: Информационные технологии подготовки печатных и электронных СМИ | J101: 3 | K101: Экзамен | L101: 2014/2015 учебный год 1 модуль | N101: 30 | O101: 1 | P101: 1 | Q101: 475555736 | R101: 2098 | T101: Журналистика | U101: =MATCH(D101,Отчет!$C:$C,0) -> 44
A102: 508208312 | B102: 10 | C102: БЖУР141 | D102: 498434758 | E102: Кушнир | F102: Дарья | G102: Андреевна | H102: М141БЖУРН045 | I102: Информационные технологии подготовки печатных и электронных СМИ | J102: 3 | K102: Экзамен | L102: 2014/2015 учебный год 1 модуль | N102: 30 | O102: 1 | P102: 1 | Q102: 475555736 | R102: 2098 | T102: Журналистика | U102: =MATCH(D102,Отчет!$C:$C,0) -> 33
A103: 508208522 | B103: 10 | C103: БЖУР142 | D103: 498434854 | E103: Калоева | F103: Лидия | G103: Алановна | H103: М141БЖУРН034 | I103: Информационные технологии подготовки печатных и электронных СМИ | J103: 3 | K103: Экзамен | L103: 2014/2015 учебный год 1 модуль | N103: 30 | O103: 1 | P103: 1 | Q103: 475555736 | R103: 2098 | T103: Журналистика | U103: =MATCH(D103,Отчет!$C:$C,0) -> 40
A104: 508208594 | B104: 10 | C104: БЖУР141 | D104: 498434882 | E104: Клыгина | F104: Маргарита | G104: Александровна | H104: М141БЖУРН039 | I104: Информационные технологии подготовки печатных и электронных СМИ | J104: 3 | K104: Экзамен | L104: 2014/2015 учебный год 1 модуль | N104: 30 | O104: 1 | P104: 1 | Q104: 475555736 | R104: 2098 | T104: Журналистика | U104: =MATCH(D104,Отчет!$C:$C,0) -> 83
A105: 508208662 | B105: 10 | C105: БЖУР141 | D105: 498434914 | E105: Тимошенкова | F105: Мария | G105: Александровна | H105: М141БЖУРН069 | I105: Информационные технологии подготовки печатных и электронных СМИ | J105: 3 | K105: Экзамен | L105: 2014/2015 учебный год 1 модуль | N105: 30 | O105: 1 | P105: 1 | Q105: 475555736 | R105: 2098 | T105: Журналистика | U105: =MATCH(D105,Отчет!$C:$C,0) -> 19
A106: 508208726 | B106: 10 | C106: БЖУР142 | D106: 498434946 | E106: Шарипова | F106: Лилия | G106: Витальевна | H106: М141БЖУРН078 | I106: Информационные технологии подготовки печатных и электронных СМИ | J106: 3 | K106: Экзамен | L106: 2014/2015 учебный год 1 модуль | N106: 30 | O106: 1 | P106: 1 | Q106: 475555736 | R106: 2098 | T106: Журналистика | U106: =MATCH(D106,Отчет!$C:$C,0) -> 80
A107: 508208790 | B107: 9 | C107: БЖУР142 | D107: 498434970 | E107: Красильников | F107: Иван | G107: Сергеевич | H107: М141БЖУРН043 | I107: Информационные технологии подготовки печатных и электронных СМИ | J107: 3 | K107: Экзамен | L107: 2014/2015 учебный год 1 модуль | N107: 27 | O107: 1 | P107: 1 | Q107: 475555736 | R107: 2098 | T107: Журналистика | U107: =MATCH(D107,Отчет!$C:$C,0) -> 48
A108: 508208855 | B108: 10 | C108: БЖУР143 | D108: 498434998 | E108: Ким | F108: Анна | G108: Викторовна | H108: М141БЖУРН038 | I108: Информационные технологии подготовки печатных и электронных СМИ | J108: 3 | K108: Экзамен | L108: 2014/2015 учебный год 1 модуль | N108: 30 | O108: 1 | P108: 1 | Q108: 475555736 | R108: 2098 | T108: Журналистика | U108: =MATCH(D108,Отчет!$C:$C,0) -> 99
A109: 508208920 | B109: 10 | C109: БЖУР141 | D109: 498435026 | E109: Гандзюк | F109: Оксана | G109: Николаевна | H109: М141БЖУРН017 | I109: Информационные технологии подготовки печатных и электронных СМИ | J109: 3 | K109: Экзамен | L109: 2014/2015 учебный год 1 модуль | N109: 30 | O109: 1 | P109: 1 | Q109: 475555736 | R109: 2098 | T109: Журналистика | U109: =MATCH(D109,Отчет!$C:$C,0) -> 59
A110: 508209058 | B110: 10 | C110: БЖУР142 | D110: 499631216 | E110: Гулина | F110: Дарья | G110: Николаевна | H110: М141БЖУРН022 | I110: Информационные технологии подготовки печатных и электронных СМИ | J110: 3 | K110: Экзамен | L110: 2014/2015 учебный год 1 модуль | N110: 30 | O110: 1 | P110: 0 | Q110: 475555736 | R110: 2098 | T110: Журналистика | U110: =MATCH(D110,Отчет!$C:$C,0) -> 16
A111: 508209130 | B111: 10 | C111: БЖУР141 | D111: 499631243 | E111: Глухова | F111: Полина | G111: Владиславовна | H111: М141БЖУРН020 | I111: Информационные технологии подготовки печатных и электронных СМИ | J111: 3 | K111: Экзамен | L111: 2014/2015 учебный год 1 модуль | N111: 30 | O111: 1 | P111: 0 | Q111: 475555736 | R111: 2098 | T111: Журналистика | U111: =MATCH(D111,Отчет!$C:$C,0) -> 92
A112: 508209203 | B112: 10 | C112: БЖУР143 | D112: 499631271 | E112: Сурмина | F112: Мария | G112: Дмитриевна | H112: М141БЖУРН068 | I112: Информационные технологии подготовки печатных и электронных СМИ | J112: 3 | K112: Экзамен | L112: 2014/2015 учебный год 1 модуль | N112: 30 | O112: 1 | P112: 0 | Q112: 475555736 | R112: 2098 | T112: Журналистика | U112: =MATCH(D112,Отчет!$C:$C,0) -> 84
A113: 523013727 | B113: 10 | C113: БЖУР143 | D113: 515640266 | E113: Мащенко | F113: Владислава | G113: Владимировна | H113: М141БЖУРН087 | I113: Информационные технологии подготовки печатных и электронных СМИ | J113: 3 | K113: Экзамен | L113: 2014/2015 учебный год 1 модуль | N113: 30 | O113: 1 | P113: 1 | Q113: 475555736 | R113: 2098 | T113: Журналистика | U113: =MATCH(D113,Отчет!$C:$C,0) -> 12
A114: 523013169 | B114: 10 | C114: БЖУР142 | D114: 515640294 | E114: Мельникова | F114: Ксения | G114: Витальевна | H114: М141БЖУРН086 | I114: Информационные технологии подготовки печатных и электронных СМИ | J114: 3 | K114: Экзамен | L114: 2014/2015 учебный год 1 модуль | N114: 30 | O114: 1 | P114: 1 | Q114: 475555736 | R114: 2098 | T114: Журналистика | U114: =MATCH(D114,Отчет!$C:$C,0) -> 28
A115: 560426131 | B115: 10 | C115: БЖУР142 | D115: 524367516 | E115: Ишниязова | F115: Анастасия | G115: Александровна | H115: М141БЖУРН089 | I115: Информационные технологии подготовки печатных и электронных СМИ | J115: 3 | K115: Экзамен | L115: 2014/2015 учебный год 1 модуль | N115: 30 | O115: 1 | P115: 1 | Q115: 475555736 | R115: 2098 | T115: Журналистика | U115: =MATCH(D115,Отчет!$C:$C,0) -> 87
A116: 560425961 | B116: 10 | C116: БЖУР141 | D116: 524367546 | E116: Ходневич | F116: Татьяна | G116: Сергеевна | H116: М141БЖУРН090 | I116: Информационные технологии подготовки печатных и электронных СМИ | J116: 3 | K116: Экзамен | L116: 2014/2015 учебный год 1 модуль | N116: 30 | O116: 1 | P116: 1 | Q116: 475555736 | R116: 2098 | T116: Журналистика | U116: =MATCH(D116,Отчет!$C:$C,0) -> 79
A117: 557681549 | B117: 10 | C117: БЖУР143 | D117: 557352459 | E117: Гаргарица | F117: Елизавета | G117: - | H117: М141БЖУРН093 | I117: Информационные технологии подготовки печатных и электронных СМИ | J117: 3 | K117: Экзамен | L117: 2014/2015 учебный год 1 модуль | N117: 30 | O117: 1 | P117: 1 | Q117: 475555736 | R117: 2098 | T117: Журналистика | U117: =MATCH(D117,Отчет!$C:$C,0) -> 96
A118: 557681944 | B118: 10 | C118: БЖУР141 | D118: 541015553 | E118: Дудкина | F118: Наталья | G118: - | H118: М141БЖУРН091 | I118: Информационные технологии подготовки печатных и электронных СМИ | J118: 3 | K118: Экзамен | L118: 2014/2015 учебный год 1 модуль | N118: 30 | O118: 1 | P118: 1 | Q118: 475555736 | R118: 2098 | T118: Журналистика | U118: =MATCH(D118,Отчет!$C:$C,0) -> 61
A119: 508209267 | B119: 10 | C119: БЖУР143 | D119: 499631168 | E119: Покровская | F119: Александра | G119: Гаевна | H119: М141БЖУРН059 | I119: Информационные технологии подготовки печатных и электронных СМИ | J119: 3 | K119: Экзамен | L119: 2014/2015 учебный год 1 модуль | N119: 30 | O119: 1 | P119: 0 | Q119: 475555736 | R119: 2098 | T119: Журналистика | U119: =MATCH(D119,Отчет!$C:$C,0) -> 103
A120: 557682387 | B120: 10 | C120: БЖУР141 | D120: 542391073 | E120: Порошина | F120: Кристина | G120: Вадимовна | H120: М141БЖУРН092 | I120: Информационные технологии подготовки печатных и электронных СМИ | J120: 3 | K120: Экзамен | L120: 2014/2015 учебный год 1 модуль | N120: 30 | O120: 1 | P120: 1 | Q120: 475555736 | R120: 2098 | T120: Журналистика | U120: =MATCH(D120,Отчет!$C:$C,0) -> 93
A121: 523013233 | B121: 10 | C121: БЖУР142 | D121: 515640238 | E121: Клименко | F121: Анастасия | G121: Сергеевна | H121: М141БЖУРН088 | I121: Информационные технологии подготовки печатных и электронных СМИ | J121: 3 | K121: Экзамен | L121: 2014/2015 учебный год 1 модуль | N121: 30 | O121: 1 | P121: 1 | Q121: 475555736 | R121: 2098 | T121: Журналистика | U121: =MATCH(D121,Отчет!$C:$C,0) -> 35
A122: 508207153 | B122: 10 | C122: БЖУР143 | D122: 498434310 | E122: Древова | F122: Юлия | G122: Николаевна | H122: М141БЖУРН024 | I122: Информационные технологии подготовки печатных и электронных СМИ | J122: 3 | K122: Экзамен | L122: 2014/2015 учебный год 1 модуль | N122: 30 | O122: 1 | P122: 1 | Q122: 475555736 | R122: 2098 | T122: Журналистика | U122: =MATCH(D122,Отчет!$C:$C,0) -> 14
A123: 508207224 | B123: 10 | C123: БЖУР143 | D123: 498434334 | E123: Иванкина | F123: Наталья | G123: Владиславовна | H123: М141БЖУРН030 | I123: Информационные технологии подготовки печатных и электронных СМИ | J123: 3 | K123: Экзамен | L123: 2014/2015 учебный год 1 модуль | N123: 30 | O123: 1 | P123: 1 | Q123: 475555736 | R123: 2098 | T123: Журналистика | U123: =MATCH(D123,Отчет!$C:$C,0) -> 56
A124: 508207303 | B124: 10 | C124: БЖУР141 | D124: 498434358 | E124: Николаева | F124: Лада | G124: Сергеевна | H124: М141БЖУРН057 | I124: Информационные технологии подготовки печатных и электронных СМИ | J124: 3 | K124: Экзамен | L124: 2014/2015 учебный год 1 модуль | N124: 30 | O124: 1 | P124: 1 | Q124: 475555736 | R124: 2098 | T124: Журналистика | U124: =MATCH(D124,Отчет!$C:$C,0) -> 31
A125: 508207446 | B125: 10 | C125: БЖУР142 | D125: 498434418 | E125: Мироненко | F125: Надежда | G125: Евгеньевна | H125: М141БЖУРН055 | I125: Информационные технологии подготовки печатных и электронных СМИ | J125: 3 | K125: Экзамен | L125: 2014/2015 учебный год 1 модуль | N125: 30 | O125: 1 | P125: 1 | Q125: 475555736 | R125: 2098 | T125: Журналистика | U125: =MATCH(D125,Отчет!$C:$C,0) -> 81
A126: 508207514 | B126: 10 | C126: БЖУР141 | D126: 498434450 | E126: Лучина | F126: Анна | G126: Александровна | H126: М141БЖУРН048 | I126: Информационные технологии подготовки печатных и электронных СМИ | J126: 3 | K126: Экзамен | L126: 2014/2015 учебный год 1 модуль | N126: 30 | O126: 1 | P126: 1 | Q126: 475555736 | R126: 2098 | T126: Журналистика | U126: =MATCH(D126,Отчет!$C:$C,0) -> 36
A127: 508207582 | B127: 10 | C127: БЖУР143 | D127: 498434478 | E127: Финутикова | F127: Дарья | G127: Николаевна | H127: М141БЖУРН073 | I127: Информационные технологии подготовки печатных и электронных СМИ | J127: 3 | K127: Экзамен | L127: 2014/2015 учебный год 1 модуль | N127: 30 | O127: 1 | P127: 1 | Q127: 475555736 | R127: 2098 | T127: Журналистика | U127: =MATCH(D127,Отчет!$C:$C,0) -> 29
A128: 508207651 | B128: 10 | C128: БЖУР141 | D128: 498434506 | E128: Федоренко | F128: Наталия | G128: Олеговна | H128: М141БЖУРН072 | I128: Информационные технологии подготовки печатных и электронных СМИ | J128: 3 | K128: Экзамен | L128: 2014/2015 учебный год 1 модуль | N128: 30 | O128: 1 | P128: 1 | Q128: 475555736 | R128: 2098 | T128: Журналистика | U128: =MATCH(D128,Отчет!$C:$C,0) -> 55
A129: 508207724 | B129: 10 | C129: БЖУР143 | D129: 498434538 | E129: Смирнова | F129: Владислава | G129: Константиновна | H129: М141БЖУРН065 | I129: Информационные технологии подготовки печатных и электронных СМИ | J129: 3 | K129: Экзамен | L129: 2014/2015 учебный год 1 модуль | N129: 30 | O129: 1 | P129: 1 | Q129: 475555736 | R129: 2098 | T129: Журналистика | U129: =MATCH(D129,Отчет!$C:$C,0) -> 15
A130: 508208173 | B130: 9 | C130: БЖУР142 | D130: 498434698 | E130: Иващенко | F130: Екатерина | G130: Викторовна | H130: М141БЖУРН031 | I130: Информационные технологии подготовки печатных и электронных СМИ | J130: 3 | K130: Экзамен | L130: 2014/2015 учебный год 1 модуль | N130: 27 | O130: 1 | P130: 1 | Q130: 475555736 | R130: 2098 | T130: Журналистика | U130: =MATCH(D130,Отчет!$C:$C,0) -> 34
A131: 508205008 | B131: 10 | C131: БЖУР142 | D131: 498435583 | E131: Каткова | F131: Мария | G131: Игоревна | H131: М141БЖУРН037 | I131: Информационные технологии подготовки печатных и электронных СМИ | J131: 3 | K131: Экзамен | L131: 2014/2015 учебный год 1 модуль | N131: 30 | O131: 1 | P131: 0 | Q131: 475555736 | R131: 2098 | T131: Журналистика | U131: =MATCH(D131,Отчет!$C:$C,0) -> 89
A132: 508206360 | B132: 10 | C132: БЖУР142 | D132: 498436133 | E132: Лаптев | F132: Андрей | G132: Вячеславович | H132: М141БЖУРН046 | I132: Информационные технологии подготовки печатных и электронных СМИ | J132: 3 | K132: Экзамен | L132: 2014/2015 учебный год 1 модуль | N132: 30 | O132: 1 | P132: 1 | Q132: 475555736 | R132: 2098 | T132: Журналистика | U132: =MATCH(D132,Отчет!$C:$C,0) -> 20
A133: 508206951 | B133: 9 | C133: БЖУР141 | D133: 498434226 | E133: Мельник | F133: Анна | G133: Геннадьевна | H133: М141БЖУРН051 | I133: Информационные технологии подготовки печатных и электронных СМИ | J133: 3 | K133: Экзамен | L133: 2014/2015 учебный год 1 модуль | N133: 27 | O133: 1 | P133: 1 | Q133: 475555736 | R133: 2098 | T133: Журналистика | U133: =MATCH(D133,Отчет!$C:$C,0) -> 30
A134: 508204685 | B134: 10 | C134: БЖУР143 | D134: 498435454 | E134: Михайлиди | F134: Александра | G134: Христофоровна | H134: М141БЖУРН056 | I134: Информационные технологии подготовки печатных и электронных СМИ | J134: 3 | K134: Экзамен | L134: 2014/2015 учебный год 1 модуль | N134: 30 | O134: 1 | P134: 0 | Q134: 475555736 | R134: 2098 | T134: Журналистика | U134: =MATCH(D134,Отчет!$C:$C,0) -> 27
A135: 508205760 | B135: 10 | C135: БЖУР141 | D135: 498435875 | E135: Сенчугова | F135: Екатерина | G135: Игоревна | H135: М141БЖУРН063 | I135: Информационные технологии подготовки печатных и электронных СМИ | J135: 3 | K135: Экзамен | L135: 2014/2015 учебный год 1 модуль | N135: 30 | O135: 1 | P135: 0 | Q135: 475555736 | R135: 2098 | T135: Журналистика | U135: =MATCH(D135,Отчет!$C:$C,0) -> 46
A136: 508208383 | B136: 10 | C136: БЖУР143 | D136: 498434786 | E136: Спирин | F136: Максим | G136: Геннадьевич | H136: М141БЖУРН067 | I136: Информационные технологии подготовки печатных и электронных СМИ | J136: 3 | K136: Экзамен | L136: 2014/2015 учебный год 1 модуль | N136: 30 | O136: 1 | P136: 1 | Q136: 475555736 | R136: 2098 | T136: Журналистика | U136: =MATCH(D136,Отчет!$C:$C,0) -> 21
A137: 508204105 | B137: 10 | C137: БЖУР142 | D137: 498435190 | E137: Фисенко | F137: Екатерина | G137: Антоновна | H137: М141БЖУРН074 | I137: Информационные технологии подготовки печатных и электронных СМИ | J137: 3 | K137: Экзамен | L137: 2014/2015 учебный год 1 модуль | N137: 30 | O137: 1 | P137: 1 | Q137: 475555736 | R137: 2098 | T137: Журналистика | U137: =MATCH(D137,Отчет!$C:$C,0) -> 50
A138: 508208452 | B138: 10 | C138: БЖУР143 | D138: 498434826 | E138: Шакиров | F138: Шамиль | G138: Маратович | H138: М141БЖУРН077 | I138: Информационные технологии подготовки печатных и электронных СМИ | J138: 3 | K138: Экзамен | L138: 2014/2015 учебный год 1 модуль | N138: 30 | O138: 1 | P138: 1 | Q138: 475555736 | R138: 2098 | T138: Журналистика | U138: =MATCH(D138,Отчет!$C:$C,0) -> 74
A139: 508207801 | B139: 9 | C139: БЖУР142 | D139: 498434562 | E139: Белоиванова | F139: Кристина | G139: Олеговна | H139: М141БЖУРН005 | I139: Информационные технологии подготовки печатных и электронных СМИ | J139: 3 | K139: Экзамен | L139: 2014/2015 учебный год 1 модуль | N139: 27 | O139: 1 | P139: 1 | Q139: 475555736 | R139: 2098 | T139: Журналистика | U139: =MATCH(D139,Отчет!$C:$C,0) -> 95
A140: 508207875 | B140: 10 | C140: БЖУР142 | D140: 498434590 | E140: Шаботич | F140: Амела | G140: - | H140: М141БЖУРН076 | I140: Информационные технологии подготовки печатных и электронных СМИ | J140: 3 | K140: Экзамен | L140: 2014/2015 учебный год 1 модуль | N140: 30 | O140: 1 | P140: 1 | Q140: 475555736 | R140: 2098 | T140: Журналистика | U140: =MATCH(D140,Отчет!$C:$C,0) -> 64
A141: 508207951 | B141: 10 | C141: БЖУР141 | D141: 498434614 | E141: Екомасова | F141: Анна | G141: Олеговна | H141: М141БЖУРН025 | I141: Информационные технологии подготовки печатных и электронных СМИ | J141: 3 | K141: Экзамен | L141: 2014/2015 учебный год 1 модуль | N141: 30 | O141: 1 | P141: 1 | Q141: 475555736 | R141: 2098 | T141: Журналистика | U141: =MATCH(D141,Отчет!$C:$C,0) -> 51
A142: 508208102 | B142: 10 | C142: БЖУР143 | D142: 498434674 | E142: Карабанов | F142: Андрей | G142: Павлович | H142: М141БЖУРН035 | I142: Информационные технологии подготовки печатных и электронных СМИ | J142: 3 | K142: Экзамен | L142: 2014/2015 учебный год 1 модуль | N142: 30 | O142: 1 | P142: 1 | Q142: 475555736 | R142: 2098 | T142: Журналистика | U142: =MATCH(D142,Отчет!$C:$C,0) -> 72
A143: 508205494 | B143: 10 | C143: БЖУР141 | D143: 498435766 | E143: Кошеварова | F143: Елена | G143: Александровна | H143: М141БЖУРН042 | I143: Информационные технологии подготовки печатных и электронных СМИ | J143: 3 | K143: Экзамен | L143: 2014/2015 учебный год 1 модуль | N143: 30 | O143: 1 | P143: 0 | Q143: 475555736 | R143: 2098 | T143: Журналистика | U143: =MATCH(D143,Отчет!$C:$C,0) -> 37
A144: 508205560 | B144: 10 | C144: БЖУР142 | D144: 498435792 | E144: Емельянова | F144: Лидия | G144: Станиславовна | H144: М141БЖУРН026 | I144: Информационные технологии подготовки печатных и электронных СМИ | J144: 3 | K144: Экзамен | L144: 2014/2015 учебный год 1 модуль | N144: 30 | O144: 1 | P144: 0 | Q144: 475555736 | R144: 2098 | T144: Журналистика | U144: =MATCH(D144,Отчет!$C:$C,0) -> 52
A145: 508205628 | B145: 10 | C145: БЖУР143 | D145: 498435818 | E145: Аюпова | F145: Арина | G145: Альбертовна | H145: М141БЖУРН003 | I145: Информационные технологии подготовки печатных и электронных СМИ | J145: 3 | K145: Экзамен | L145: 2014/2015 учебный год 1 модуль | N145: 30 | O145: 1 | P145: 0 | Q145: 475555736 | R145: 2098 | T145: Журналистика | U145: =MATCH(D145,Отчет!$C:$C,0) -> 17
A146: 508205696 | B146: 10 | C146: БЖУР141 | D146: 498435845 | E146: Барсукова | F146: Анна | G146: Дмитриевна | H146: М141БЖУРН004 | I146: Информационные технологии подготовки печатных и электронных СМИ | J146: 3 | K146: Экзамен | L146: 2014/2015 учебный год 1 модуль | N146: 30 | O146: 1 | P146: 0 | Q146: 475555736 | R146: 2098 | T146: Журналистика | U146: =MATCH(D146,Отчет!$C:$C,0) -> 49
A147: 508205890 | B147: 10 | C147: БЖУР141 | D147: 498435929 | E147: Шлюпкина | F147: Даяна | G147: Олеговна | H147: М141БЖУРН080 | I147: Информационные технологии подготовки печатных и электронных СМИ | J147: 3 | K147: Экзамен | L147: 2014/2015 учебный год 1 модуль | N147: 30 | O147: 1 | P147: 0 | Q147: 475555736 | R147: 2098 | T147: Журналистика | U147: =MATCH(D147,Отчет!$C:$C,0) -> 78
A148: 508205960 | B148: 10 | C148: БЖУР143 | D148: 498435955 | E148: Губин | F148: Тимофей | G148: Сергеевич | H148: М141БЖУРН021 | I148: Информационные технологии подготовки печатных и электронных СМИ | J148: 3 | K148: Экзамен | L148: 2014/2015 учебный год 1 модуль | N148: 30 | O148: 1 | P148: 0 | Q148: 475555736 | R148: 2098 | T148: Журналистика | U148: =MATCH(D148,Отчет!$C:$C,0) -> 100
A149: 508206025 | B149: 10 | C149: БЖУР141 | D149: 498435979 | E149: Волкова | F149: Мария | G149: Владимировна | H149: М141БЖУРН014 | I149: Информационные технологии подготовки печатных и электронных СМИ | J149: 3 | K149: Экзамен | L149: 2014/2015 учебный год 1 модуль | N149: 30 | O149: 1 | P149: 0 | Q149: 475555736 | R149: 2098 | T149: Журналистика | U149: =MATCH(D149,Отчет!$C:$C,0) -> 42
A150: 508206155 | B150: 10 | C150: БЖУР141 | D150: 498436040 | E150: Фролова | F150: Виктория | G150: Александровна | H150: М141БЖУРН075 | I150: Информационные технологии подготовки печатных и электронных СМИ | J150: 3 | K150: Экзамен | L150: 2014/2015 учебный год 1 модуль | N150: 30 | O150: 1 | P150: 0 | Q150: 475555736 | R150: 2098 | T150: Журналистика | U150: =MATCH(D150,Отчет!$C:$C,0) -> 57
A151: 508206219 | B151: 10 | C151: БЖУР143 | D151: 498436063 | E151: Сапонова | F151: Анастасия | G151: Владимировна | H151: М141БЖУРН062 | I151: Информационные технологии подготовки печатных и электронных СМИ | J151: 3 | K151: Экзамен | L151: 2014/2015 учебный год 1 модуль | N151: 30 | O151: 1 | P151: 0 | Q151: 475555736 | R151: 2098 | T151: Журналистика | U151: =MATCH(D151,Отчет!$C:$C,0) -> 24
A152: 508206283 | B152: 10 | C152: БЖУР143 | D152: 498436108 | E152: Шульга | F152: Арина | G152: Степановна | H152: М141БЖУРН082 | I152: Информационные технологии подготовки печатных и электронных СМИ | J152: 3 | K152: Экзамен | L152: 2014/2015 учебный год 1 модуль | N152: 30 | O152: 1 | P152: 1 | Q152: 475555736 | R152: 2098 | T152: Журналистика | U152: =MATCH(D152,Отчет!$C:$C,0) -> 43
A153: 508206428 | B153: 10 | C153: БЖУР142 | D153: 498436157 | E153: Пендина | F153: Полина | G153: Владимировна | H153: М141БЖУРН058 | I153: Информационные технологии подготовки печатных и электронных СМИ | J153: 3 | K153: Экзамен | L153: 2014/2015 учебный год 1 модуль | N153: 30 | O153: 1 | P153: 1 | Q153: 475555736 | R153: 2098 | T153: Журналистика | U153: =MATCH(D153,Отчет!$C:$C,0) -> 53
A154: 508206496 | B154: 8 | C154: БЖУР143 | D154: 498436181 | E154: Крылова | F154: Софья | G154: Андреевна | H154: М141БЖУРН044 | I154: Информационные технологии подготовки печатных и электронных СМИ | J154: 3 | K154: Экзамен | L154: 2014/2015 учебный год 1 модуль | N154: 24 | O154: 1 | P154: 1 | Q154: 475555736 | R154: 2098 | T154: Журналистика | U154: =MATCH(D154,Отчет!$C:$C,0) -> 91
A155: 508206560 | B155: 10 | C155: БЖУР143 | D155: 498436205 | E155: Белюга | F155: Татьяна | G155: Сергеевна | H155: М141БЖУРН006 | I155: Информационные технологии подготовки печатных и электронных СМИ | J155: 3 | K155: Экзамен | L155: 2014/2015 учебный год 1 модуль | N155: 30 | O155: 1 | P155: 1 | Q155: 475555736 | R155: 2098 | T155: Журналистика | U155: =MATCH(D155,Отчет!$C:$C,0) -> 18
A156: 508206627 | B156: 10 | C156: БЖУР143 | D156: 498436229 | E156: Маслаков | F156: Денис | G156: Андреевич | H156: М141БЖУРН050 | I156: Информационные технологии подготовки печатных и электронных СМИ | J156: 3 | K156: Экзамен | L156: 2014/2015 учебный год 1 модуль | N156: 30 | O156: 1 | P156: 1 | Q156: 475555736 | R156: 2098 | T156: Журналистика | U156: =MATCH(D156,Отчет!$C:$C,0) -> 26
A157: 508206691 | B157: 10 | C157: БЖУР143 | D157: 498436257 | E157: Казаков | F157: Илья | G157: Викторович | H157: М141БЖУРН032 | I157: Информационные технологии подготовки печатных и электронных СМИ | J157: 3 | K157: Экзамен | L157: 2014/2015 учебный год 1 модуль | N157: 30 | O157: 1 | P157: 1 | Q157: 475555736 | R157: 2098 | T157: Журналистика | U157: =MATCH(D157,Отчет!$C:$C,0) -> 38
A158: 508207375 | B158: 10 | C158: БЖУР142 | D158: 498434390 | E158: Ворошилов | F158: Николай | G158: Михайлович | H158: М141БЖУРН016 | I158: Информационные технологии подготовки печатных и электронных СМИ | J158: 3 | K158: Экзамен | L158: 2014/2015 учебный год 1 модуль | N158: 30 | O158: 1 | P158: 1 | Q158: 475555736 | R158: 2098 | T158: Журналистика | U158: =MATCH(D158,Отчет!$C:$C,0) -> 32
A159: 508205824 | B159: 10 | C159: БЖУР143 | D159: 498435902 | E159: Житпелева | F159: Ольга | G159: Игоревна | H159: М141БЖУРН027 | I159: Информационные технологии подготовки печатных и электронных СМИ | J159: 3 | K159: Экзамен | L159: 2014/2015 учебный год 1 модуль | N159: 30 | O159: 1 | P159: 0 | Q159: 475555736 | R159: 2098 | T159: Журналистика | U159: =MATCH(D159,Отчет!$C:$C,0) -> 77
A160: 508208988 | B160: 10 | C160: БЖУР141 | D160: 499631190 | E160: Журавлёв | F160: Илья | G160: Владимирович | H160: М141БЖУРН028 | I160: Информационные технологии подготовки печатных и электронных СМИ | J160: 3 | K160: Экзамен | L160: 2014/2015 учебный год 1 модуль | N160: 30 | O160: 1 | P160: 0 | Q160: 475555736 | R160: 2098 | T160: Журналистика | U160: =MATCH(D160,Отчет!$C:$C,0) -> 47
A161: 508206756 | B161: 10 | C161: БЖУР142 | D161: 498434150 | E161: Шубина | F161: Дарина | G161: Андреевна | H161: М141БЖУРН081 | I161: Информационные технологии подготовки печатных и электронных СМИ | J161: 3 | K161: Экзамен | L161: 2014/2015 учебный год 1 модуль | N161: 30 | O161: 1 | P161: 1 | Q161: 475555736 | R161: 2098 | T161: Журналистика | U161: =MATCH(D161,Отчет!$C:$C,0) -> 85
A162: 508206822 | B162: 9 | C162: БЖУР141 | D162: 498434174 | E162: Борзенкова | F162: Елизавета | G162: Александровна | H162: М141БЖУРН008 | I162: Информационные технологии подготовки печатных и электронных СМИ | J162: 3 | K162: Экзамен | L162: 2014/2015 учебный год 1 модуль | N162: 27 | O162: 1 | P162: 1 | Q162: 475555736 | R162: 2098 | T162: Журналистика | U162: =MATCH(D162,Отчет!$C:$C,0) -> 82
A163: 508207015 | B163: 10 | C163: БЖУР142 | D163: 498434254 | E163: Вопиловская | F163: Мария | G163: Николаевна | H163: М141БЖУРН015 | I163: Информационные технологии подготовки печатных и электронных СМИ | J163: 3 | K163: Экзамен | L163: 2014/2015 учебный год 1 модуль | N163: 30 | O163: 1 | P163: 1 | Q163: 475555736 | R163: 2098 | T163: Журналистика | U163: =MATCH(D163,Отчет!$C:$C,0) -> 75
A164: 508207082 | B164: 7 | C164: БЖУР143 | D164: 498434282 | E164: Ширяева | F164: Дарья | G164: Алексеевна | H164: М141БЖУРН079 | I164: Информационные технологии подготовки печатных и электронных СМИ | J164: 3 | K164: Экзамен | L164: 2014/2015 учебный год 1 модуль | N164: 21 | O164: 1 | P164: 1 | Q164: 475555736 | R164: 2098 | T164: Журналистика | U164: =MATCH(D164,Отчет!$C:$C,0) -> 101
A165: 508203779 | B165: 10 | C165: БЖУР142 | D165: 498435054 | E165: Бочаров | F165: Иван | G165: Михайлович | H165: М141БЖУРН009 | I165: Информационные технологии подготовки печатных и электронных СМИ | J165: 3 | K165: Экзамен | L165: 2014/2015 учебный год 1 модуль | N165: 30 | O165: 1 | P165: 1 | Q165: 475555736 | R165: 2098 | T165: Журналистика | U165: =MATCH(D165,Отчет!$C:$C,0) -> 54
A166: 508203848 | B166: 10 | C166: БЖУР142 | D166: 498435086 | E166: Синицына | F166: Анастасия | G166: Михайловна | H166: М141БЖУРН064 | I166: Информационные технологии подготовки печатных и электронных СМИ | J166: 3 | K166: Экзамен | L166: 2014/2015 учебный год 1 модуль | N166: 30 | O166: 1 | P166: 1 | Q166: 475555736 | R166: 2098 | T166: Журналистика | U166: =MATCH(D166,Отчет!$C:$C,0) -> 68
A167: 508203912 | B167: 10 | C167: БЖУР143 | D167: 498435110 | E167: Фадеева | F167: Анастасия | G167: Германовна | H167: М141БЖУРН071 | I167: Информационные технологии подготовки печатных и электронных СМИ | J167: 3 | K167: Экзамен | L167: 2014/2015 учебный год 1 модуль | N167: 30 | O167: 1 | P167: 1 | Q167: 475555736 | R167: 2098 | T167: Журналистика | U167: =MATCH(D167,Отчет!$C:$C,0) -> 102
A168: 508203976 | B168: 10 | C168: БЖУР143 | D168: 498435138 | E168: Копелевич | F168: Екатерина | G168: Ильинична | H168: М141БЖУРН041 | I168: Информационные технологии подготовки печатных и электронных СМИ | J168: 3 | K168: Экзамен | L168: 2014/2015 учебный год 1 модуль | N168: 30 | O168: 1 | P168: 1 | Q168: 475555736 | R168: 2098 | T168: Журналистика | U168: =MATCH(D168,Отчет!$C:$C,0) -> 94
A169: 508204040 | B169: 9 | C169: БЖУР141 | D169: 498435162 | E169: Булыгина | F169: Анастасия | G169: Яковлевна | H169: М141БЖУРН010 | I169: Информационные технологии подготовки печатных и электронных СМИ | J169: 3 | K169: Экзамен | L169: 2014/2015 учебный год 1 модуль | N169: 27 | O169: 1 | P169: 1 | Q169: 475555736 | R169: 2098 | T169: Журналистика | U169: =MATCH(D169,Отчет!$C:$C,0) -> 73
A170: 508204169 | B170: 10 | C170: БЖУР142 | D170: 498435244 | E170: Кондратов | F170: Антон | G170: Сергеевич | H170: М141БЖУРН040 | I170: Информационные технологии подготовки печатных и электронных СМИ | J170: 3 | K170: Экзамен | L170: 2014/2015 учебный год 1 модуль | N170: 30 | O170: 1 | P170: 0 | Q170: 475555736 | R170: 2098 | T170: Журналистика | U170: =MATCH(D170,Отчет!$C:$C,0) -> 69
A171: 508204233 | B171: 10 | C171: БЖУР142 | D171: 498435271 | E171: Берняева | F171: Евгения | G171: Игоревна | H171: М141БЖУРН007 | I171: Информационные технологии подготовки печатных и электронных СМИ | J171: 3 | K171: Экзамен | L171: 2014/2015 учебный год 1 модуль | N171: 30 | O171: 1 | P171: 0 | Q171: 475555736 | R171: 2098 | T171: Журналистика | U171: =MATCH(D171,Отчет!$C:$C,0) -> 76
A172: 508204297 | B172: 10 | C172: БЖУР141 | D172: 498435298 | E172: Авдонина | F172: Дарья | G172: Романовна | H172: М141БЖУРН001 | I172: Информационные технологии подготовки печатных и электронных СМИ | J172: 3 | K172: Экзамен | L172: 2014/2015 учебный год 1 модуль | N172: 30 | O172: 1 | P172: 0 | Q172: 475555736 | R172: 2098 | T172: Журналистика | U172: =MATCH(D172,Отчет!$C:$C,0) -> 86
A173: 508204361 | B173: 10 | C173: БЖУР142 | D173: 498435329 | E173: Гимаева | F173: Майя | G173: Родионовна | H173: М141БЖУРН018 | I173: Информационные технологии подготовки печатных и электронных СМИ | J173: 3 | K173: Экзамен | L173: 2014/2015 учебный год 1 модуль | N173: 30 | O173: 1 | P173: 0 | Q173: 475555736 | R173: 2098 | T173: Журналистика | U173: =MATCH(D173,Отчет!$C:$C,0) -> 58
A174: 508204429 | B174: 10 | C174: БЖУР142 | D174: 498435355 | E174: Сорокина | F174: Анастасия | G174: Андреевна | H174: М141БЖУРН066 | I174: Информационные технологии подготовки печатных и электронных СМИ | J174: 3 | K174: Экзамен | L174: 2014/2015 учебный год 1 модуль | N174: 30 | O174: 1 | P174: 0 | Q174: 475555736 | R174: 2098 | T174: Журналистика | U174: =MATCH(D174,Отчет!$C:$C,0) -> 22
A175: 508204493 | B175: 10 | C175: БЖУР141 | D175: 498435377 | E175: Самиленко | F175: Софья | G175: Игоревна | H175: М141БЖУРН061 | I175: Информационные технологии подготовки печатных и электронных СМИ | J175: 3 | K175: Экзамен | L175: 2014/2015 учебный год 1 модуль | N175: 30 | O175: 1 | P175: 0 | Q175: 475555736 | R175: 2098 | T175: Журналистика | U175: =MATCH(D175,Отчет!$C:$C,0) -> 60
A176: 508204557 | B176: 10 | C176: БЖУР141 | D176: 498435405 | E176: Микеладзе | F176: Елизавета | G176: Ираклиевна | H176: М141БЖУРН054 | I176: Информационные технологии подготовки печатных и электронных СМИ | J176: 3 | K176: Экзамен | L176: 2014/2015 учебный год 1 модуль | N176: 30 | O176: 1 | P176: 0 | Q176: 475555736 | R176: 2098 | T176: Журналистика | U176: =MATCH(D176,Отчет!$C:$C,0) -> 39
A177: 508204621 | B177: 10 | C177: БЖУР142 | D177: 498435428 | E177: Тороп | F177: Анастасия | G177: Леонидовна | H177: М141БЖУРН070 | I177: Информационные технологии подготовки печатных и электронных СМИ | J177: 3 | K177: Экзамен | L177: 2014/2015 учебный год 1 модуль | N177: 30 | O177: 1 | P177: 0 | Q177: 475555736 | R177: 2098 | T177: Журналистика | U177: =MATCH(D177,Отчет!$C:$C,0) -> 41
A178: 508204749 | B178: 10 | C178: БЖУР141 | D178: 498435480 | E178: Казарновский | F178: Павел | G178: Леонидович | H178: М141БЖУРН033 | I178: Информационные технологии подготовки печатных и электронных СМИ | J178: 3 | K178: Экзамен | L178: 2014/2015 учебный год 1 модуль | N178: 30 | O178: 1 | P178: 0 | Q178: 475555736 | R178: 2098 | T178: Журналистика | U178: =MATCH(D178,Отчет!$C:$C,0) -> 23
A179: 508204814 | B179: 10 | C179: БЖУР142 | D179: 498435509 | E179: Аникина | F179: Мария | G179: Михайловна | H179: М141БЖУРН002 | I179: Информационные технологии подготовки печатных и электронных СМИ | J179: 3 | K179: Экзамен | L179: 2014/2015 учебный год 1 модуль | N179: 30 | O179: 1 | P179: 0 | Q179: 475555736 | R179: 2098 | T179: Журналистика | U179: =MATCH(D179,Отчет!$C:$C,0) -> 62
A180: 508204880 | B180: 10 | C180: БЖУР142 | D180: 498435535 | E180: Васильчук | F180: Татьяна | G180: Алексеевна | H180: М141БЖУРН012 | I180: Информационные технологии подготовки печатных и электронных СМИ | J180: 3 | K180: Экзамен | L180: 2014/2015 учебный год 1 модуль | N180: 30 | O180: 1 | P180: 0 | Q180: 475555736 | R180: 2098 | T180: Журналистика | U180: =MATCH(D180,Отчет!$C:$C,0) -> 97
A181: 508205081 | B181: 10 | C181: БЖУР142 | D181: 498435609 | E181: Манькова | F181: Елизавета | G181: Сергеевна | H181: М141БЖУРН049 | I181: Информационные технологии подготовки печатных и электронных СМИ | J181: 3 | K181: Экзамен | L181: 2014/2015 учебный год 1 модуль | N181: 30 | O181: 1 | P181: 0 | Q181: 475555736 | R181: 2098 | T181: Журналистика | U181: =MATCH(D181,Отчет!$C:$C,0) -> 90
A182: 508205217 | B182: 10 | C182: БЖУР141 | D182: 498435661 | E182: Касьяненко | F182: Дарья | G182: Алексеевна | H182: М141БЖУРН036 | I182: Информационные технологии подготовки печатных и электронных СМИ | J182: 3 | K182: Экзамен | L182: 2014/2015 учебный год 1 модуль | N182: 30 | O182: 1 | P182: 0 | Q182: 475555736 | R182: 2098 | T182: Журналистика | U182: =MATCH(D182,Отчет!$C:$C,0) -> 13
A183: 508205284 | B183: 10 | C183: БЖУР143 | D183: 498435688 | E183: Виткова | F183: Анастасия | G183: Андреевна | H183: М141БЖУРН013 | I183: Информационные технологии подготовки печатных и электронных СМИ | J183: 3 | K183: Экзамен | L183: 2014/2015 учебный год 1 модуль | N183: 30 | O183: 1 | P183: 0 | Q183: 475555736 | R183: 2098 | T183: Журналистика | U183: =MATCH(D183,Отчет!$C:$C,0) -> 98
A184: 508205357 | B184: 10 | C184: БЖУР142 | D184: 498435714 | E184: Зыбина | F184: Мария | G184: Сергеевна | H184: М141БЖУРН029 | I184: Информационные технологии подготовки печатных и электронных СМИ | J184: 3 | K184: Экзамен | L184: 2014/2015 учебный год 1 модуль | N184: 30 | O184: 1 | P184: 0 | Q184: 475555736 | R184: 2098 | T184: Журналистика | U184: =MATCH(D184,Отчет!$C:$C,0) -> 65
A185: 508205429 | B185: 10 | C185: БЖУР142 | D185: 498435740 | E185: Мещерская | F185: Мария | G185: Всеволодовна | H185: М141БЖУРН052 | I185: Информационные технологии подготовки печатных и электронных СМИ | J185: 3 | K185: Экзамен | L185: 2014/2015 учебный год 1 модуль | N185: 30 | O185: 1 | P185: 0 | Q185: 475555736 | R185: 2098 | T185: Журналистика | U185: =MATCH(D185,Отчет!$C:$C,0) -> 63
A186: 508206631 | B186: 10 | C186: БЖУР143 | D186: 498436229 | E186: Маслаков | F186: Денис | G186: Андреевич | H186: М141БЖУРН050 | I186: Проектный семинар | J186: 2 | K186: Экзамен | L186: 2014/2015 учебный год 1 модуль | N186: 20 | O186: 1 | P186: 1 | Q186: 475555736 | R186: 2098 | T186: Журналистика | U186: =MATCH(D186,Отчет!$C:$C,0) -> 26
A187: 508206695 | B187: 10 | C187: БЖУР143 | D187: 498436257 | E187: Казаков | F187: Илья | G187: Викторович | H187: М141БЖУРН032 | I187: Проектный семинар | J187: 2 | K187: Экзамен | L187: 2014/2015 учебный год 1 модуль | N187: 20 | O187: 1 | P187: 1 | Q187: 475555736 | R187: 2098 | T187: Журналистика | U187: =MATCH(D187,Отчет!$C:$C,0) -> 38
A188: 508207379 | B188: 9 | C188: БЖУР142 | D188: 498434390 | E188: Ворошилов | F188: Николай | G188: Михайлович | H188: М141БЖУРН016 | I188: Проектный семинар | J188: 2 | K188: Экзамен | L188: 2014/2015 учебный год 1 модуль | N188: 18 | O188: 1 | P188: 1 | Q188: 475555736 | R188: 2098 | T188: Журналистика | U188: =MATCH(D188,Отчет!$C:$C,0) -> 32
A189: 508205828 | B189: 10 | C189: БЖУР143 | D189: 498435902 | E189: Житпелева | F189: Ольга | G189: Игоревна | H189: М141БЖУРН027 | I189: Проектный семинар | J189: 2 | K189: Экзамен | L189: 2014/2015 учебный год 1 модуль | N189: 20 | O189: 1 | P189: 0 | Q189: 475555736 | R189: 2098 | T189: Журналистика | U189: =MATCH(D189,Отчет!$C:$C,0) -> 77
A190: 508208992 | B190: 10 | C190: БЖУР141 | D190: 499631190 | E190: Журавлёв | F190: Илья | G190: Владимирович | H190: М141БЖУРН028 | I190: Проектный семинар | J190: 2 | K190: Экзамен | L190: 2014/2015 учебный год 1 модуль | N190: 20 | O190: 1 | P190: 0 | Q190: 475555736 | R190: 2098 | T190: Журналистика | U190: =MATCH(D190,Отчет!$C:$C,0) -> 47
A191: 508206762 | B191: 10 | C191: БЖУР142 | D191: 498434150 | E191: Шубина | F191: Дарина | G191: Андреевна | H191: М141БЖУРН081 | I191: Проектный семинар | J191: 2 | K191: Экзамен | L191: 2014/2015 учебный год 1 модуль | N191: 20 | O191: 1 | P191: 1 | Q191: 475555736 | R191: 2098 | T191: Журналистика | U191: =MATCH(D191,Отчет!$C:$C,0) -> 85
A192: 508207019 | B192: 10 | C192: БЖУР142 | D192: 498434254 | E192: Вопиловская | F192: Мария | G192: Николаевна | H192: М141БЖУРН015 | I192: Проектный семинар | J192: 2 | K192: Экзамен | L192: 2014/2015 учебный год 1 модуль | N192: 20 | O192: 1 | P192: 1 | Q192: 475555736 | R192: 2098 | T192: Журналистика | U192: =MATCH(D192,Отчет!$C:$C,0) -> 75
A193: 508203786 | B193: 10 | C193: БЖУР142 | D193: 498435054 | E193: Бочаров | F193: Иван | G193: Михайлович | H193: М141БЖУРН009 | I193: Проектный семинар | J193: 2 | K193: Экзамен | L193: 2014/2015 учебный год 1 модуль | N193: 20 | O193: 1 | P193: 1 | Q193: 475555736 | R193: 2098 | T193: Журналистика | U193: =MATCH(D193,Отчет!$C:$C,0) -> 54
A194: 508203852 | B194: 10 | C194: БЖУР142 | D194: 498435086 | E194: Синицына | F194: Анастасия | G194: Михайловна | H194: М141БЖУРН064 | I194: Проектный семинар | J194: 2 | K194: Экзамен | L194: 2014/2015 учебный год 1 модуль | N194: 20 | O194: 1 | P194: 1 | Q194: 475555736 | R194: 2098 | T194: Журналистика | U194: =MATCH(D194,Отчет!$C:$C,0) -> 68
A195: 508203916 | B195: 8 | C195: БЖУР143 | D195: 498435110 | E195: Фадеева | F195: Анастасия | G195: Германовна | H195: М141БЖУРН071 | I195: Проектный семинар | J195: 2 | K195: Экзамен | L195: 2014/2015 учебный год 1 модуль | N195: 16 | O195: 1 | P195: 1 | Q195: 475555736 | R195: 2098 | T195: Журналистика | U195: =MATCH(D195,Отчет!$C:$C,0) -> 102
A196: 508203980 | B196: 10 | C196: БЖУР143 | D196: 498435138 | E196: Копелевич | F196: Екатерина | G196: Ильинична | H196: М141БЖУРН041 | I196: Проектный семинар | J196: 2 | K196: Экзамен | L196: 2014/2015 учебный год 1 модуль | N196: 20 | O196: 1 | P196: 1 | Q196: 475555736 | R196: 2098 | T196: Журналистика | U196: =MATCH(D196,Отчет!$C:$C,0) -> 94
A197: 508204173 | B197: 9 | C197: БЖУР142 | D197: 498435244 | E197: Кондратов | F197: Антон | G197: Сергеевич | H197: М141БЖУРН040 | I197: Проектный семинар | J197: 2 | K197: Экзамен | L197: 2014/2015 учебный год 1 модуль | N197: 18 | O197: 1 | P197: 0 | Q197: 475555736 | R197: 2098 | T197: Журналистика | U197: =MATCH(D197,Отчет!$C:$C,0) -> 69
A198: 508204237 | B198: 10 | C198: БЖУР142 | D198: 498435271 | E198: Берняева | F198: Евгения | G198: Игоревна | H198: М141БЖУРН007 | I198: Проектный семинар | J198: 2 | K198: Экзамен | L198: 2014/2015 учебный год 1 модуль | N198: 20 | O198: 1 | P198: 0 | Q198: 475555736 | R198: 2098 | T198: Журналистика | U198: =MATCH(D198,Отчет!$C:$C,0) -> 76
A199: 508204301 | B199: 10 | C199: БЖУР141 | D199: 498435298 | E199: Авдонина | F199: Дарья | G199: Романовна | H199: М141БЖУРН001 | I199: Проектный семинар | J199: 2 | K199: Экзамен | L199: 2014/2015 учебный год 1 модуль | N199: 20 | O199: 1 | P199: 0 | Q199: 475555736 | R199: 2098 | T199: Журналистика | U199: =MATCH(D199,Отчет!$C:$C,0) -> 86
A200: 508204365 | B200: 10 | C200: БЖУР142 | D200: 498435329 | E200: Гимаева | F200: Майя | G200: Родионовна | H200: М141БЖУРН018 | I200: Проектный семинар | J200: 2 | K200: Экзамен | L200: 2014/2015 учебный год 1 модуль | N200: 20 | O200: 1 | P200: 0 | Q200: 475555736 | R200: 2098 | T200: Журналистика | U200: =MATCH(D200,Отчет!$C:$C,0) -> 58
... 1824 more rows
